Workbook

Sheet Indice
K2: "… la hoja de cálculo es un instrumento extraordinariamente potente, de fácil uso y versátil pero puede contener graves errores ocultos derivados de fallos cometidos en el diseño del modelo “……. Consejo: Audite continuamente sus diseños…
K8: Consejos de navegacion a tráves de los vínculos del libro
K9: Volver al vínculo anterior | M9: ALT + ← | N9: ALT+FLECHA IZQUIERDA
K10: Volver al vínculo siguiente | M10: ALT + → | N10: ALT+FLECHA DERECHA
K11: R: | L11: Restaura a valores estándar
K12: NC: | L12: Nota contable
K13: NT: | L13: Nota técnica
A15: Indice
B16: NT1 | C16: ANALISIS PATRIMONIAL Y DE RESULTADOS DE LA EMPRESA
C17: Cuentas Formales de Balance y PyG
D18: Balance (Patrimonio Empresarial)
D19: Pérdidas y Ganancias
C20: Ordenación Funcional Balance y PyG
D21: Balance (Patrimonio Empresarial)
D22: Pérdidas y Ganancias
C23: Porcentajes Verticales y Horizontales
D24: Balance (Patrimonio Empresarial)
D25: Pérdidas y Ganancias
C26: Endeudamiento
D27: Endeudamiento Total, L/P y C/P
D28: Endeudamiento Bancario Total, L/P y C/P
D29: Endeudamiento Comercial C/P
B30: NT2 | C30: ANALISIS FINANCIERO O DE SOLVENCIA
C31: Equilibrio Financiero
D32: Equilibrio Financiero a Largo Plazo (Garantía, Financiación del Activo No Corriente)
D33: Equilibrio Financiero a Corto Plazo (Ratio Corriente, de Solvencia C/P, etc..)
C34: Periodo Medio de Maduración
D35: Periodo Medio de Maduración Económico (Almacenamiento, Cobro a Clientes)
D36: Periodo Medio de Pagos a Proveedores
D37: Necesidades de Financiacion en dias y en euros
B38: NT3 | C38: ANALISIS ECONOMICO O DE LA RENTABILIDAD
C39: Rentabilidad Económica
D40: Rentabilidad Económica
D41: Margen Económico
D42: Rotación Activo Total
C43: Rentabilidad Financiera
D44: Rentabilidad Financiera
D45: Coste Medio Contable de la Deuda
D46: Ratio de Endeudamiento
D47: Apalancamiento Financiero

Sheet BALANCE-PYG
A1: 47. COMERCIO AL POR MENOR
A2: Numero de empresas incluidas comunes | B2: 910 | C2: 910 | D2: 910 | E2: 910 | F2: 910
A3: BALANCE - PATRIMONO EMPRESARIAL
B4: 2008 | C4: 2009 | D4: 2010 | E4: 2011 | F4: 2012
B5: mil EUR | C5: mil EUR | D5: mil EUR | E5: mil EUR | F5: mil EUR | K5: Total Activo | L5: Total Pasivo | M5: Descuadre:
A6: ACTIVO | J6: =B4 -> 2008 | K6: =B27 -> 911097 | L6: =B67 -> 911097 | M6: =K6-L6 -> 0 | N6: =IF(M6=0,"Cuadrado","Revisar") -> Cuadrado
J7: =C4 -> 2009 | K7: =C27 -> 909179 | L7: =C67 -> 909179 | M7: =K7-L7 -> 0 | N7: =IF(M7=0,"Cuadrado","Revisar") -> Cuadrado
A8: ACTIVO NO CORRIENTE | B8: =B9+B10+B11+B12+B13+B14 -> 470028 | C8: =C9+C10+C11+C12+C13+C14 -> 479878 | D8: =D9+D10+D11+D12+D13+D14 -> 487817 | E8: =E9+E10+E11+E12+E13+E14 -> 483301 | F8: =F9+F10+F11+F12+F13+F14 -> 479038 | J8: =D4 -> 2010 | K8: =D27 -> 923485 | L8: =D67 -> 923485 | M8: =K8-L8 -> 0 | N8: =IF(M8=0,"Cuadrado","Revisar") -> Cuadrado
A9: Inmovilizado intangible | B9: 5518 | C9: 5200 | D9: 7489 | E9: 8925 | F9: 8457 | J9: =E4 -> 2011 | K9: =E27 -> 922652 | L9: =E67 -> 922652 | M9: =K9-L9 -> 0 | N9: =IF(M9=0,"Cuadrado","Revisar") -> Cuadrado
A10: Inmovilizado material | B10: 365732 | C10: 362855 | D10: 360682 | E10: 352302 | F10: 340112 | J10: =F4 -> 2012 | K10: =F27 -> 913201 | L10: =F67 -> 913201 | M10: =K10-L10 -> 0 | N10: =IF(M10=0,"Cuadrado","Revisar") -> Cuadrado
A11: Inversiones inmobiliarias | B11: 47636 | C11: 60500 | D11: 65617 | E11: 65013 | F11: 64130
A12: Inversiones en empresas del grupo y asociadas a largo plazo | B12: 6390 | C12: 5364 | D12: 5848 | E12: 7329 | F12: 7093
A13: Inversiones financieras a largo plazo | B13: 41352 | C13: 41426 | D13: 42671 | E13: 43585 | F13: 52098
A14: Activos por impuesto diferido | B14: 3400 | C14: 4533 | D14: 5510 | E14: 6147 | F14: 7148
A16: ACTIVO CORRIENTE | B16: =B17+B18+B22+B23+B24+B25 -> 441069 | C16: =C17+C18+C22+C23+C24+C25 -> 429301 | D16: =D17+D18+D22+D23+D24+D25 -> 435668 | E16: =E17+E18+E22+E23+E24+E25 -> 439351 | F16: =F17+F18+F22+F23+F24+F25 -> 434163
A17: Existencias | B17: 209291 | C17: 201703 | D17: 206863 | E17: 208484 | F17: 204571
A18: Deudores comerciales y otras cuentas a cobrar | B18: =B19+B20+B21 -> 105706 | C18: =C19+C20+C21 -> 100504 | D18: =D19+D20+D21 -> 97050 | E18: =E19+E20+E21 -> 93516 | F18: =F19+F20+F21 -> 87132
A19: Clientes por ventas y prestaciones de servicios | B19: 87515 | C19: 83240 | D19: 82084 | E19: 77975 | F19: 70161
A20: Accionistas (socios) por desembolsos exigidos | B20: 0 | C20: 51 | D20: 29 | E20: 0 | F20: 13
A21: Otros deudores | B21: 18191 | C21: 17213 | D21: 14937 | E21: 15541 | F21: 16958
A22: Inversiones en empresas del grupo y asociadas a corto plazo | B22: 3313 | C22: 2887 | D22: 3834 | E22: 3951 | F22: 7152
A23: Inversiones financieras a corto plazo | B23: 48385 | C23: 50135 | D23: 54032 | E23: 56468 | F23: 58968
A24: Periodificaciones a corto plazo | B24: 702 | C24: 518 | D24: 730 | E24: 273 | F24: 265
A25: Efectivo y otros activos líquidos equivalentes | B25: 73672 | C25: 73554 | D25: 73159 | E25: 76659 | F25: 76075
A27: TOTAL ACTIVO | B27: =B16+B8 -> 911097 | C27: =C16+C8 -> 909179 | D27: =D16+D8 -> 923485 | E27: =E16+E8 -> 922652 | F27: =F16+F8 -> 913201
A29: PATRIMONIO NETO Y PASIVO | B29: =B4 -> 2008 | C29: 2009 | D29: 2010 | E29: 2011 | F29: 2012
B30: mil EUR | C30: mil EUR | D30: mil EUR | E30: mil EUR | F30: mil EUR
A31: PATRIMONIO NETO | B31: =B32+B43 -> 435928 | C31: =C32+C43 -> 455615 | D31: =D32+D43 -> 466557 | E31: =E32+E43 -> 475985 | F31: =F32+F43 -> 492138
A32: Fondos propios | B32: =B33+B36+B37+B38+B39+B40+B41+B42 -> 435151 | C32: =C33+C36+C37+C38+C39+C40+C41+C42 -> 454852 | D32: =D33+D36+D37+D38+D39+D40+D41+D42 -> 465774 | E32: =E33+E36+E37+E38+E39+E40+E41+E42 -> 475184 | F32: =F33+F36+F37+F38+F39+F40+F41+F42 -> 491537
A33: Capital | B33: =B34+B35 -> 68708 | C33: =C34+C35 -> 71110 | D33: =D34+D35 -> 73465 | E33: =E34+E35 -> 75358 | F33: =F34+F35 -> 78650
A34: Capital escriturado | B34: 68708 | C34: 71110 | D34: 73465 | E34: 75358 | F34: 78650
A35: (Capital no exigido) | B35: 0 | C35: 0 | D35: 0 | E35: 0 | F35: 0
A36: Prima de emisión | B36: 5558 | C36: 5492 | D36: 8409 | E36: 8344 | F36: 8274
A37: Reservas | B37: 334663 | C37: 359130 | D37: 380746 | E37: 392986 | F37: 412872
A38: (Acciones y participaciones en patrimonio propias) | B38: -1907 | C38: -1408 | D38: -1408 | E38: 0 | F38: 0
A39: Resultados de ejercicios anteriores | B39: 8145 | C39: 4336 | D39: -6752 | E39: -18873 | F39: -28020
A40: Otras aportaciones de socios | B40: 443 | C40: 4537 | D40: 4565 | E40: 6307 | F40: 6652
A41: Resultado del ejercicio | B41: 19544 | C41: 11668 | D41: 6927 | E41: 11325 | F41: 13262
A42: (Dividendo a cuenta) | B42: -3 | C42: -13 | D42: -178 | E42: -263 | F42: -153
A43: Subvenciones, donaciones y legados recibidos | B43: 777 | C43: 763 | D43: 783 | E43: 801 | F43: 601
A45: PASIVO NO CORRIENTE | B45: =B46+B47+B51+B52+B53 -> 204789 | C45: =C46+C47+C51+C52+C53 -> 211333 | D45: =D46+D47+D51+D52+D53 -> 210213 | E45: =E46+E47+E51+E52+E53 -> 200920 | F45: =F46+F47+F51+F52+F53 -> 187970
A46: Provisiones a largo plazo | B46: 298 | C46: 303 | D46: 491 | E46: 308 | F46: 293
A47: Deudas a largo plazo | B47: =B48+B49+B50 -> 199740 | C47: =C48+C49+C50 -> 205811 | D47: =D48+D49+D50 -> 207110 | E47: =E48+E49+E50 -> 198320 | F47: =F48+F49+F50 -> 184879
A48: Deudas con entidades de crédito | B48: 171124 | C48: 184070 | D48: 182666 | E48: 171383 | F48: 159009
A49: Acreedores por arrendamiento financiero | B49: 3830 | C49: 3462 | D49: 4423 | E49: 4175 | F49: 3561
A50: Otras deudas a largo plazo | B50: 24786 | C50: 18279 | D50: 20021 | E50: 22762 | F50: 22309
A51: Deudas con empresas del grupo y asociadas a largo plazo | B51: 4346 | C51: 4798 | D51: 1946 | E51: 1750 | F51: 2354
A52: Pasivos por impuesto diferido | B52: 343 | C52: 338 | D52: 299 | E52: 296 | F52: 278
A53: Periodificaciones a largo plazo | B53: 62 | C53: 83 | D53: 367 | E53: 246 | F53: 166
A55: PASIVO CORRIENTE | B55: =B56+B57+B61+B62+B65 -> 270380 | C55: =C56+C57+C61+C62+C65 -> 242231 | D55: =D56+D57+D61+D62+D65 -> 246715 | E55: =E56+E57+E61+E62+E65 -> 245747 | F55: =F56+F57+F61+F62+F65 -> 233093
A56: Provisiones a corto plazo | B56: 305 | C56: 171 | D56: 192 | E56: 396 | F56: 136
A57: Deudas a corto plazo | B57: =B58+B59+B60 -> 89900 | C57: =C58+C59+C60 -> 80500 | D57: =D58+D59+D60 -> 79593 | E57: =E58+E59+E60 -> 77294 | F57: =F58+F59+F60 -> 76193
A58: Deudas con entidades de crédito | B58: 40541 | C58: 37240 | D58: 34740 | E58: 29932 | F58: 27451
A59: Acreedores por arrendamiento financiero | B59: 436 | C59: 403 | D59: 659 | E59: 577 | F59: 577
A60: Otras deudas a corto plazo | B60: 48923 | C60: 42857 | D60: 44194 | E60: 46785 | F60: 48165
A61: Deudas con empresas del grupo y asociadas a corto plazo | B61: 3521 | C61: 3300 | D61: 6944 | E61: 5840 | F61: 4959
A62: Acreedores comerciales y otras cuentas a pagar | B62: =B63+B64 -> 176222 | C62: =C63+C64 -> 158043 | D62: =D63+D64 -> 159895 | E62: =E63+E64 -> 162027 | F62: =F63+F64 -> 151680
A63: Proveedores | B63: 127958 | C63: 114561 | D63: 118031 | E63: 117366 | F63: 107252
A64: Otros acreedores | B64: 48264 | C64: 43482 | D64: 41864 | E64: 44661 | F64: 44428
A65: Periodificaciones a corto plazo | B65: 432 | C65: 217 | D65: 91 | E65: 190 | F65: 125
A67: TOTAL PATRIMONIO NETO Y PASIVO | B67: =B31+B45+B55 -> 911097 | C67: =C31+C45+C55 -> 909179 | D67: =D31+D45+D55 -> 923485 | E67: =E31+E45+E55 -> 922652 | F67: =F31+F45+F55 -> 913201
A72: CUENTA DE PÉRDIDAS Y GANANCIAS
B74: =B29 -> 2008 | C74: 2009 | D74: 2010 | E74: 2011 | F74: 2012
B75: mil EUR | C75: mil EUR | D75: mil EUR | E75: mil EUR | F75: mil EUR
A76: Importe neto de la cifra de negocios | B76: 929513 | C76: 806211 | D76: 816395 | E76: 836739 | F76: 811809
A77: Variación de existencias de productos terminados y en curso de fabricación | B77: -1473 | C77: 256 | D77: 801 | E77: 1048 | F77: -376
A78: Trabajos realizados por la empresa para su activo | B78: 550 | C78: 667 | D78: 626 | E78: 540 | F78: 246
A79: Aprovisionamientos | B79: -660161 | C79: -554314 | D79: -568875 | E79: -587222 | F79: -569590
A80: Otros ingresos de explotación | B80: 18604 | C80: 14330 | D80: 14894 | E80: 15890 | F80: 15932
A81: Gastos de personal | B81: -130928 | C81: -126706 | D81: -126408 | E81: -128676 | F81: -126416
A82: Otros gastos de explotación | B82: -103035 | C82: -94677 | D82: -95280 | E82: -95210 | F82: -92868
A83: Amortización del inmovilizado | B83: -21971 | C83: -22177 | D83: -22844 | E83: -22372 | F83: -20280
A84: Imputación de subvenciones de inmovilizado no financiero y otras | B84: 234 | C84: 187 | D84: 137 | E84: 140 | F84: 99
A85: Excesos de provisiones | B85: 20 | C85: 175 | D85: 5 | E85: 0 | F85: 84
A86: Deterioro y resultado por enajenaciones del inmovilizado | B86: 2807 | C86: 5585 | D86: 1240 | E86: 2816 | F86: 4152
A87: RESULTADO DE EXPLOTACIÓN | B87: =SUM(B76:B86) -> 34160 | C87: =SUM(C76:C86) -> 29537 | D87: =SUM(D76:D86) -> 20691 | E87: =SUM(E76:E86) -> 23693 | F87: =SUM(F76:F86) -> 22792
A88: Ingresos financieros | B88: 4762 | C88: 3830 | D88: 2341 | E88: 2535 | F88: 2708
A89: Gastos financieros | B89: -15708 | C89: -14076 | D89: -10704 | E89: -10216 | F89: -10386
A90: Variación de valor razonable en instrumentos financieros | B90: -675 | C90: -617 | D90: -575 | E90: -751 | F90: -413
A91: Diferencias de cambio | B91: 15 | C91: -2076 | D91: -2077 | E91: -902 | F91: 1284
A92: Deterioro y resultado por enajenaciones de instrumentos financieros | B92: 51 | C92: -2115 | D92: -237 | E92: -483 | F92: -183
A93: RESULTADO FINANCIERO | B93: =SUM(B88:B92) -> -11555 | C93: =SUM(C88:C92) -> -15054 | D93: =SUM(D88:D92) -> -11252 | E93: =SUM(E88:E92) -> -9817 | F93: =SUM(F88:F92) -> -6990
A95: RESULTADO ANTES DE IMPUESTOS | B95: =B87+B93 -> 22605 | C95: =C87+C93 -> 14483 | D95: =D87+D93 -> 9439 | E95: =E87+E93 -> 13876 | F95: =F87+F93 -> 15802
A97: Impuestos sobre beneficios | B97: -3061 | C97: -2815 | D97: -2512 | E97: -2551 | F97: -2540
A99: RESULTADO DEL EJERCICIO | B99: =B95+B97 -> 19544 | C99: =C95+C97 -> 11668 | D99: =D95+D97 -> 6927 | E99: =E95+E97 -> 11325 | F99: =F95+F97 -> 13262

Sheet Ordenacion Funcional
A1: ORDENACION FUNCIONAL DEL PATRIMONIO Y RESULTADOS
B2: 47. COMERCIO AL POR MENOR
B3: ='BALANCE-PYG '!B2 -> 910 | C3: ='BALANCE-PYG '!C2 -> 910 | D3: ='BALANCE-PYG '!D2 -> 910 | E3: ='BALANCE-PYG '!E2 -> 910 | F3: ='BALANCE-PYG '!F2 -> 910
A4: BALANCE - PATRIMONO EMPRESARIAL | H4: Comprobación
B5: 2008 | C5: 2009 | D5: 2010 | E5: 2011 | F5: 2012 | I5: Total Activo | J5: Total Pasivo | K5: Descuadre:
B6: mil EUR | C6: mil EUR | D6: mil EUR | E6: mil EUR | F6: mil EUR | H6: =B5 -> 2008 | I6: =B32 -> 911097 | J6: =B73 -> 911097 | K6: =I6-J6 -> 0 | L6: =IF(K6=0,"Cuadrado","Revisar") -> Cuadrado
A7: ACTIVO | H7: =C5 -> 2009 | I7: =C32 -> 909179 | J7: =C73 -> 909179 | K7: =I7-J7 -> 0 | L7: =IF(K7=0,"Cuadrado","Revisar") -> Cuadrado
H8: =D5 -> 2010 | I8: =D32 -> 923485 | J8: =D73 -> 923485 | K8: =I8-J8 -> 0 | L8: =IF(K8=0,"Cuadrado","Revisar") -> Cuadrado
A9: ACTIVO EXPLOTACIÓN | B9: =B10+B14 -> 764021 | C9: =C10+C14 -> 748816 | D9: 751454 | E9: 746306 | F9: 723747 | H9: =E5 -> 2011 | I9: =E32 -> 922652 | J9: =E73 -> 922652 | K9: =I9-J9 -> 0 | L9: =IF(K9=0,"Cuadrado","Revisar") -> Cuadrado
A10: ACTIVO NO CORRIENTE EXPLOTACIÓN | B10: =B11+B12+B13 -> 374650 | C10: =C11+C12+C13 -> 372588 | D10: =D11+D12+D13 -> 373681 | E10: =E11+E12+E13 -> 367374 | F10: =F11+F12+F13 -> 355717 | H10: =F5 -> 2012 | I10: =F32 -> 913201 | J10: =F73 -> 913201 | K10: =I10-J10 -> 0 | L10: =IF(K10=0,"Cuadrado","Revisar") -> Cuadrado
A11: Inmovilizado intangible | B11: ='BALANCE-PYG '!B9 -> 5518 | C11: ='BALANCE-PYG '!C9 -> 5200 | D11: ='BALANCE-PYG '!D9 -> 7489 | E11: ='BALANCE-PYG '!E9 -> 8925 | F11: ='BALANCE-PYG '!F9 -> 8457
A12: Inmovilizado material | B12: ='BALANCE-PYG '!B10 -> 365732 | C12: ='BALANCE-PYG '!C10 -> 362855 | D12: ='BALANCE-PYG '!D10 -> 360682 | E12: ='BALANCE-PYG '!E10 -> 352302 | F12: ='BALANCE-PYG '!F10 -> 340112
A13: Activos por impuesto diferido | B13: ='BALANCE-PYG '!B14 -> 3400 | C13: ='BALANCE-PYG '!C14 -> 4533 | D13: ='BALANCE-PYG '!D14 -> 5510 | E13: ='BALANCE-PYG '!E14 -> 6147 | F13: ='BALANCE-PYG '!F14 -> 7148
A14: ACTIVO CORRIENTE EXPLOTACIÓN | B14: =B15+B19 -> 389371 | C14: =C15+C19 -> 376228 | D14: 377773 | E14: 378932 | F14: 368030
A15: ACTIVOS COMERCIALES | B15: =SUM(B16:B18) -> 315699 | C15: =SUM(C16:C18) -> 302674 | D15: =SUM(D16:D18) -> 304614 | E15: =SUM(E16:E18) -> 302273 | F15: =SUM(F16:F18) -> 291955
A16: Existencias | B16: ='BALANCE-PYG '!B17 -> 209291 | C16: ='BALANCE-PYG '!C17 -> 201703 | D16: ='BALANCE-PYG '!D17 -> 206863 | E16: ='BALANCE-PYG '!E17 -> 208484 | F16: ='BALANCE-PYG '!F17 -> 204571
A17: Clientes por ventas y prestaciones de servicios | B17: ='BALANCE-PYG '!B19 -> 87515 | C17: ='BALANCE-PYG '!C19 -> 83240 | D17: ='BALANCE-PYG '!D19 -> 82084 | E17: ='BALANCE-PYG '!E19 -> 77975 | F17: ='BALANCE-PYG '!F19 -> 70161
A18: Otros deudores (incluye periodificaciones c/p) | B18: ='BALANCE-PYG '!B21+'BALANCE-PYG '!B24 -> 18893 | C18: ='BALANCE-PYG '!C21+'BALANCE-PYG '!C24 -> 17731 | D18: ='BALANCE-PYG '!D21+'BALANCE-PYG '!D24 -> 15667 | E18: ='BALANCE-PYG '!E21+'BALANCE-PYG '!E24 -> 15814 | F18: ='BALANCE-PYG '!F21+'BALANCE-PYG '!F24 -> 17223
A19: TESORERÍA | B19: =B20 -> 73672 | C19: =C20 -> 73554 | D19: =D20 -> 73159 | E19: =E20 -> 76659 | F19: =F20 -> 76075
A20: Efectivo y otros activos líquidos equivalentes | B20: ='BALANCE-PYG '!B25 -> 73672 | C20: ='BALANCE-PYG '!C25 -> 73554 | D20: ='BALANCE-PYG '!D25 -> 73159 | E20: ='BALANCE-PYG '!E25 -> 76659 | F20: ='BALANCE-PYG '!F25 -> 76075
A22: ACTIVO AJENO A LA EXPLOTACIÓN | B22: =B23+B27 -> 147076 | C22: =C23+C27 -> 160363 | D22: 172031 | E22: 176346 | F22: 189454
A23: ACTIVO NO CORRIENTE AJENO EXPLOTACIÓN | B23: =SUM(B24:B26) -> 95378 | C23: =SUM(C24:C26) -> 107290 | D23: =SUM(D24:D26) -> 114136 | E23: =SUM(E24:E26) -> 115927 | F23: =SUM(F24:F26) -> 123321
A24: Inversiones inmobiliarias | B24: ='BALANCE-PYG '!B11 -> 47636 | C24: ='BALANCE-PYG '!C11 -> 60500 | D24: ='BALANCE-PYG '!D11 -> 65617 | E24: ='BALANCE-PYG '!E11 -> 65013 | F24: ='BALANCE-PYG '!F11 -> 64130
A25: Inversiones en empresas del grupo y asociadas a largo plazo | B25: ='BALANCE-PYG '!B12 -> 6390 | C25: ='BALANCE-PYG '!C12 -> 5364 | D25: ='BALANCE-PYG '!D12 -> 5848 | E25: ='BALANCE-PYG '!E12 -> 7329 | F25: ='BALANCE-PYG '!F12 -> 7093
A26: Inversiones financieras a largo plazo | B26: ='BALANCE-PYG '!B13 -> 41352 | C26: ='BALANCE-PYG '!C13 -> 41426 | D26: ='BALANCE-PYG '!D13 -> 42671 | E26: ='BALANCE-PYG '!E13 -> 43585 | F26: ='BALANCE-PYG '!F13 -> 52098
A27: ACTIVO CORRIENTE AJENO EXPLOTACIÓN | B27: =SUM(B28:B30) -> 51698 | C27: =SUM(C28:C30) -> 53073 | D27: =SUM(D28:D30) -> 57895 | E27: =SUM(E28:E30) -> 60419 | F27: =SUM(F28:F30) -> 66133
A28: Inversiones en empresas del grupo y asociadas a corto plazo | B28: ='BALANCE-PYG '!B22 -> 3313 | C28: ='BALANCE-PYG '!C22 -> 2887 | D28: ='BALANCE-PYG '!D22 -> 3834 | E28: ='BALANCE-PYG '!E22 -> 3951 | F28: ='BALANCE-PYG '!F22 -> 7152
A29: Inversiones financieras a corto plazo | B29: ='BALANCE-PYG '!B23 -> 48385 | C29: ='BALANCE-PYG '!C23 -> 50135 | D29: ='BALANCE-PYG '!D23 -> 54032 | E29: ='BALANCE-PYG '!E23 -> 56468 | F29: ='BALANCE-PYG '!F23 -> 58968
A30: Accionistas (socios) por desembolsos exigidos | B30: ='BALANCE-PYG '!B20 -> 0 | C30: ='BALANCE-PYG '!C20 -> 51 | D30: ='BALANCE-PYG '!D20 -> 29 | E30: ='BALANCE-PYG '!E20 -> 0 | F30: ='BALANCE-PYG '!F20 -> 13
A32: TOTAL ACTIVO | B32: =B22+B9 -> 911097 | C32: =C22+C9 -> 909179 | D32: =D22+D9 -> 923485 | E32: =E22+E9 -> 922652 | F32: =F22+F9 -> 913201
A34: Inversiones financieras total o puras | B34: =B29+B26 -> 89737 | C34: =C29+C26 -> 91561 | D34: =D29+D26 -> 96703 | E34: =E29+E26 -> 100053 | F34: =F29+F26 -> 111066
A35: Inversiones en empresas del grupo y asociadas total | B35: =B28+B25 -> 9703 | C35: =C28+C25 -> 8251 | D35: =D28+D25 -> 9682 | E35: =E28+E25 -> 11280 | F35: =F28+F25 -> 14245
B36: =B5 -> 2008 | C36: =C5 -> 2009 | D36: =D5 -> 2010 | E36: =E5 -> 2011 | F36: =F5 -> 2012
A37: PATRIMONIO NETO | B37: =B38+B49 -> 435928 | C37: =C38+C49 -> 455615 | D37: =D38+D49 -> 466557 | E37: =E38+E49 -> 475985 | F37: =F38+F49 -> 492138
A38: Fondos propios | B38: =B39+B42+B43+B44+B45+B46+B47+B48 -> 435151 | C38: =C39+C42+C43+C44+C45+C46+C47+C48 -> 454852 | D38: =D39+D42+D43+D44+D45+D46+D47+D48 -> 465774 | E38: =E39+E42+E43+E44+E45+E46+E47+E48 -> 475184 | F38: =F39+F42+F43+F44+F45+F46+F47+F48 -> 491537
A39: Capital | B39: =B40+B41 -> 68708 | C39: =C40+C41 -> 71110 | D39: =D40+D41 -> 73465 | E39: =E40+E41 -> 75358 | F39: =F40+F41 -> 78650
A40: Capital escriturado | B40: ='BALANCE-PYG '!B34 -> 68708 | C40: ='BALANCE-PYG '!C34 -> 71110 | D40: ='BALANCE-PYG '!D34 -> 73465 | E40: ='BALANCE-PYG '!E34 -> 75358 | F40: ='BALANCE-PYG '!F34 -> 78650
A41: (Capital no exigido) | B41: ='BALANCE-PYG '!B35 -> 0 | C41: ='BALANCE-PYG '!C35 -> 0 | D41: ='BALANCE-PYG '!D35 -> 0 | E41: ='BALANCE-PYG '!E35 -> 0 | F41: ='BALANCE-PYG '!F35 -> 0
A42: Prima de emisión | B42: ='BALANCE-PYG '!B36 -> 5558 | C42: ='BALANCE-PYG '!C36 -> 5492 | D42: ='BALANCE-PYG '!D36 -> 8409 | E42: ='BALANCE-PYG '!E36 -> 8344 | F42: ='BALANCE-PYG '!F36 -> 8274
A43: Reservas | B43: ='BALANCE-PYG '!B37 -> 334663 | C43: ='BALANCE-PYG '!C37 -> 359130 | D43: ='BALANCE-PYG '!D37 -> 380746 | E43: ='BALANCE-PYG '!E37 -> 392986 | F43: ='BALANCE-PYG '!F37 -> 412872
A44: (Acciones y participaciones en patrimonio propias) | B44: ='BALANCE-PYG '!B38 -> -1907 | C44: ='BALANCE-PYG '!C38 -> -1408 | D44: ='BALANCE-PYG '!D38 -> -1408 | E44: ='BALANCE-PYG '!E38 -> 0 | F44: ='BALANCE-PYG '!F38 -> 0
A45: Resultados de ejercicios anteriores | B45: ='BALANCE-PYG '!B39 -> 8145 | C45: ='BALANCE-PYG '!C39 -> 4336 | D45: ='BALANCE-PYG '!D39 -> -6752 | E45: ='BALANCE-PYG '!E39 -> -18873 | F45: ='BALANCE-PYG '!F39 -> -28020
A46: Otras aportaciones de socios | B46: ='BALANCE-PYG '!B40 -> 443 | C46: ='BALANCE-PYG '!C40 -> 4537 | D46: ='BALANCE-PYG '!D40 -> 4565 | E46: ='BALANCE-PYG '!E40 -> 6307 | F46: ='BALANCE-PYG '!F40 -> 6652
A47: Resultado del ejercicio | B47: ='BALANCE-PYG '!B41 -> 19544 | C47: ='BALANCE-PYG '!C41 -> 11668 | D47: ='BALANCE-PYG '!D41 -> 6927 | E47: ='BALANCE-PYG '!E41 -> 11325 | F47: ='BALANCE-PYG '!F41 -> 13262
A48: (Dividendo a cuenta) | B48: ='BALANCE-PYG '!B42 -> -3 | C48: ='BALANCE-PYG '!C42 -> -13 | D48: ='BALANCE-PYG '!D42 -> -178 | E48: ='BALANCE-PYG '!E42 -> -263 | F48: ='BALANCE-PYG '!F42 -> -153
A49: Subvenciones, donaciones y legados recibidos | B49: ='BALANCE-PYG '!B43 -> 777 | C49: ='BALANCE-PYG '!C43 -> 763 | D49: ='BALANCE-PYG '!D43 -> 783 | E49: ='BALANCE-PYG '!E43 -> 801 | F49: ='BALANCE-PYG '!F43 -> 601
A51: PASIVO TOTAL | B51: =B52+B62 -> 475169 | C51: =C52+C62 -> 453564 | D51: =D52+D62 -> 456928 | E51: =E52+E62 -> 446667 | F51: =F52+F62 -> 421063
A52: PASIVO NO CORRIENTE | B52: =B53+B57 -> 204789 | C52: =C53+C57 -> 211333 | D52: =D53+D57 -> 210213 | E52: =E53+E57 -> 200920 | F52: =F53+F57 -> 187970
A53: CRÉDITOS PUROS A LARGO PLAZO | B53: =SUM(B54:B56) -> 204086 | C53: =SUM(C54:C56) -> 210609 | D53: =SUM(D54:D56) -> 209056 | E53: =SUM(E54:E56) -> 200070 | F53: =SUM(F54:F56) -> 187233
A54: Deudas con entidades de crédito | B54: ='BALANCE-PYG '!B48 -> 171124 | C54: ='BALANCE-PYG '!C48 -> 184070 | D54: ='BALANCE-PYG '!D48 -> 182666 | E54: ='BALANCE-PYG '!E48 -> 171383 | F54: ='BALANCE-PYG '!F48 -> 159009
A55: Deudas con empresas del grupo y asociadas a largo plazo | B55: ='BALANCE-PYG '!B51 -> 4346 | C55: ='BALANCE-PYG '!C51 -> 4798 | D55: ='BALANCE-PYG '!D51 -> 1946 | E55: ='BALANCE-PYG '!E51 -> 1750 | F55: ='BALANCE-PYG '!F51 -> 2354
A56: Otras deudas a largo plazo | B56: ='BALANCE-PYG '!B49+'BALANCE-PYG '!B50 -> 28616 | C56: ='BALANCE-PYG '!C49+'BALANCE-PYG '!C50 -> 21741 | D56: ='BALANCE-PYG '!D49+'BALANCE-PYG '!D50 -> 24444 | E56: ='BALANCE-PYG '!E49+'BALANCE-PYG '!E50 -> 26937 | F56: ='BALANCE-PYG '!F49+'BALANCE-PYG '!F50 -> 25870
A57: OTROS PASIVOS NO CORRIENTES | B57: =SUM(B58:B60) -> 703 | C57: =SUM(C58:C60) -> 724 | D57: =SUM(D58:D60) -> 1157 | E57: =SUM(E58:E60) -> 850 | F57: =SUM(F58:F60) -> 737
A58: Provisiones a largo plazo | B58: ='BALANCE-PYG '!B46 -> 298 | C58: ='BALANCE-PYG '!C46 -> 303 | D58: ='BALANCE-PYG '!D46 -> 491 | E58: ='BALANCE-PYG '!E46 -> 308 | F58: ='BALANCE-PYG '!F46 -> 293
A59: Pasivos por impuesto diferido | B59: ='BALANCE-PYG '!B52 -> 343 | C59: ='BALANCE-PYG '!C52 -> 338 | D59: ='BALANCE-PYG '!D52 -> 299 | E59: ='BALANCE-PYG '!E52 -> 296 | F59: ='BALANCE-PYG '!F52 -> 278
A60: Periodificaciones a largo plazo | B60: ='BALANCE-PYG '!B53 -> 62 | C60: ='BALANCE-PYG '!C53 -> 83 | D60: ='BALANCE-PYG '!D53 -> 367 | E60: ='BALANCE-PYG '!E53 -> 246 | F60: ='BALANCE-PYG '!F53 -> 166
A62: PASIVO CORRIENTE | B62: =B63+B66+B70 -> 270380 | C62: =C63+C66+C70 -> 242231 | D62: =D63+D66+D70 -> 246715 | E62: =E63+E66+E70 -> 245747 | F62: =F63+F66+F70 -> 233093
A63: PASIVOS COMERCIALES | B63: =B64+B65 -> 176654 | C63: =C64+C65 -> 158260 | D63: =D64+D65 -> 159986 | E63: =E64+E65 -> 162217 | F63: =F64+F65 -> 151805
A64: Proveedores | B64: ='BALANCE-PYG '!B63 -> 127958 | C64: ='BALANCE-PYG '!C63 -> 114561 | D64: ='BALANCE-PYG '!D63 -> 118031 | E64: ='BALANCE-PYG '!E63 -> 117366 | F64: ='BALANCE-PYG '!F63 -> 107252
A65: Otros acreedores | B65: ='BALANCE-PYG '!B64+'BALANCE-PYG '!B65 -> 48696 | C65: ='BALANCE-PYG '!C64+'BALANCE-PYG '!C65 -> 43699 | D65: ='BALANCE-PYG '!D64+'BALANCE-PYG '!D65 -> 41955 | E65: ='BALANCE-PYG '!E64+'BALANCE-PYG '!E65 -> 44851 | F65: ='BALANCE-PYG '!F64+'BALANCE-PYG '!F65 -> 44553
A66: CRÉDITOS PUROS A CORTO PLAZO | B66: =B67+B68+B69 -> 93421 | C66: =C67+C68+C69 -> 83800 | D66: =D67+D68+D69 -> 86537 | E66: =E67+E68+E69 -> 83134 | F66: =F67+F68+F69 -> 81152
A67: Deudas con entidades de crédito | B67: ='BALANCE-PYG '!B58 -> 40541 | C67: ='BALANCE-PYG '!C58 -> 37240 | D67: ='BALANCE-PYG '!D58 -> 34740 | E67: ='BALANCE-PYG '!E58 -> 29932 | F67: ='BALANCE-PYG '!F58 -> 27451
A68: Deudas con empresas del grupo y asociadas a corto plazo | B68: ='BALANCE-PYG '!B61 -> 3521 | C68: ='BALANCE-PYG '!C61 -> 3300 | D68: ='BALANCE-PYG '!D61 -> 6944 | E68: ='BALANCE-PYG '!E61 -> 5840 | F68: ='BALANCE-PYG '!F61 -> 4959
A69: Otras deudas a corto plazo | B69: ='BALANCE-PYG '!B59+'BALANCE-PYG '!B60 -> 49359 | C69: ='BALANCE-PYG '!C59+'BALANCE-PYG '!C60 -> 43260 | D69: ='BALANCE-PYG '!D59+'BALANCE-PYG '!D60 -> 44853 | E69: ='BALANCE-PYG '!E59+'BALANCE-PYG '!E60 -> 47362 | F69: ='BALANCE-PYG '!F59+'BALANCE-PYG '!F60 -> 48742
A70: OTROS PASIVOS CORRIENTES | B70: =B71 -> 305 | C70: =C71 -> 171 | D70: =D71 -> 192 | E70: =E71 -> 396 | F70: =F71 -> 136
A71: Provisiones a corto plazo | B71: ='BALANCE-PYG '!B56 -> 305 | C71: ='BALANCE-PYG '!C56 -> 171 | D71: ='BALANCE-PYG '!D56 -> 192 | E71: ='BALANCE-PYG '!E56 -> 396 | F71: ='BALANCE-PYG '!F56 -> 136
A73: TOTAL PATRIMONIO NETO Y PASIVO | B73: =B37+B51 -> 911097 | C73: =C37+C51 -> 909179 | D73: =D37+D51 -> 923485 | E73: =E37+E51 -> 922652 | F73: =F37+F51 -> 913201
A75: Deudas con entidades de crédito total | B75: ='BALANCE-PYG '!B58+'BALANCE-PYG '!B48 -> 211665 | C75: ='BALANCE-PYG '!C58+'BALANCE-PYG '!C48 -> 221310 | D75: ='BALANCE-PYG '!D58+'BALANCE-PYG '!D48 -> 217406 | E75: ='BALANCE-PYG '!E58+'BALANCE-PYG '!E48 -> 201315 | F75: ='BALANCE-PYG '!F58+'BALANCE-PYG '!F48 -> 186460
A76: Deudas con empresas del grupo y asociadas total | B76: ='BALANCE-PYG '!B51+'BALANCE-PYG '!B61 -> 7867 | C76: ='BALANCE-PYG '!C51+'BALANCE-PYG '!C61 -> 8098 | D76: ='BALANCE-PYG '!D51+'BALANCE-PYG '!D61 -> 8890 | E76: ='BALANCE-PYG '!E51+'BALANCE-PYG '!E61 -> 7590 | F76: ='BALANCE-PYG '!F51+'BALANCE-PYG '!F61 -> 7313
A78: ORDENACION FUNCIONAL DEL PATRIMONIO Y RESULTADOS
B79: 47. COMERCIO AL POR MENOR
B80: 2008 | C80: 2009 | D80: 2010 | E80: 2011 | F80: 2012
A81: CUENTA DE PÉRDIDAS Y GANANCIAS | B81: mil EUR | C81: mil EUR | D81: mil EUR | E81: mil EUR | F81: mil EUR
A83: Importe neto de la cifra de negocios | B83: ='BALANCE-PYG '!B76 -> 929513 | C83: ='BALANCE-PYG '!C76 -> 806211 | D83: ='BALANCE-PYG '!D76 -> 816395 | E83: ='BALANCE-PYG '!E76 -> 836739 | F83: ='BALANCE-PYG '!F76 -> 811809
A84: Consumo de existencias | B84: =B85+B86 -> -661634 | C84: =C85+C86 -> -554058 | D84: =D85+D86 -> -568074 | E84: =E85+E86 -> -586174 | F84: =F85+F86 -> -569966
A85: Aprovisionamientos | B85: ='BALANCE-PYG '!B79 -> -660161 | C85: ='BALANCE-PYG '!C79 -> -554314 | D85: ='BALANCE-PYG '!D79 -> -568875 | E85: ='BALANCE-PYG '!E79 -> -587222 | F85: ='BALANCE-PYG '!F79 -> -569590
A86: Variación de existencias de productos terminados y en curso de fabricación | B86: ='BALANCE-PYG '!B77 -> -1473 | C86: ='BALANCE-PYG '!C77 -> 256 | D86: ='BALANCE-PYG '!D77 -> 801 | E86: ='BALANCE-PYG '!E77 -> 1048 | F86: ='BALANCE-PYG '!F77 -> -376
A88: RESULTADO BRUTO DE EXPLOTACIÓN | B88: =B83+B84 -> 267879 | C88: =C83+C84 -> 252153 | D88: =D83+D84 -> 248321 | E88: =E83+E84 -> 250565 | F88: =F83+F84 -> 241843
A90: Gastos de personal | B90: ='BALANCE-PYG '!B81 -> -130928 | C90: ='BALANCE-PYG '!C81 -> -126706 | D90: ='BALANCE-PYG '!D81 -> -126408 | E90: ='BALANCE-PYG '!E81 -> -128676 | F90: ='BALANCE-PYG '!F81 -> -126416
A91: Otros gastos de explotación | B91: ='BALANCE-PYG '!B82 -> -103035 | C91: ='BALANCE-PYG '!C82 -> -94677 | D91: ='BALANCE-PYG '!D82 -> -95280 | E91: ='BALANCE-PYG '!E82 -> -95210 | F91: ='BALANCE-PYG '!F82 -> -92868
A92: Amortización del inmovilizado (b) | B92: ='BALANCE-PYG '!B83 -> -21971 | C92: ='BALANCE-PYG '!C83 -> -22177 | D92: ='BALANCE-PYG '!D83 -> -22844 | E92: ='BALANCE-PYG '!E83 -> -22372 | F92: ='BALANCE-PYG '!F83 -> -20280
A94: RESULTADO NETO DE EXPLOTACIÓN | B94: =B88+B90+B91+B92 -> 11945 | C94: =C88+C90+C91+C92 -> 8593 | D94: =D88+D90+D91+D92 -> 3789 | E94: =E88+E90+E91+E92 -> 4307 | F94: =F88+F90+F91+F92 -> 2279
A96: Otros ingresos de explotación | B96: ='BALANCE-PYG '!B80 -> 18604 | C96: ='BALANCE-PYG '!C80 -> 14330 | D96: ='BALANCE-PYG '!D80 -> 14894 | E96: ='BALANCE-PYG '!E80 -> 15890 | F96: ='BALANCE-PYG '!F80 -> 15932
A97: Trabajos realizados por la empresa para su activo | B97: ='BALANCE-PYG '!B78 -> 550 | C97: ='BALANCE-PYG '!C78 -> 667 | D97: ='BALANCE-PYG '!D78 -> 626 | E97: ='BALANCE-PYG '!E78 -> 540 | F97: ='BALANCE-PYG '!F78 -> 246
A98: Imputación de subvenciones de inmovilizado no financiero y otras (c) | B98: ='BALANCE-PYG '!B84 -> 234 | C98: ='BALANCE-PYG '!C84 -> 187 | D98: ='BALANCE-PYG '!D84 -> 137 | E98: ='BALANCE-PYG '!E84 -> 140 | F98: ='BALANCE-PYG '!F84 -> 99
A99: Excesos de provisiones (d) | B99: ='BALANCE-PYG '!B85 -> 20 | C99: ='BALANCE-PYG '!C85 -> 175 | D99: ='BALANCE-PYG '!D85 -> 5 | E99: ='BALANCE-PYG '!E85 -> 0 | F99: ='BALANCE-PYG '!F85 -> 84
A100: Deterioro y resultado por enajenaciones del inmovilizado (e) | B100: ='BALANCE-PYG '!B86 -> 2807 | C100: ='BALANCE-PYG '!C86 -> 5585 | D100: ='BALANCE-PYG '!D86 -> 1240 | E100: ='BALANCE-PYG '!E86 -> 2816 | F100: ='BALANCE-PYG '!F86 -> 4152
A102: RESULTADO ANTES DE INTERESES E IMPUESTOS | B102: =B94+B96+B97+B98+B99+B100 -> 34160 | C102: =C94+C96+C97+C98+C99+C100 -> 29537 | D102: =D94+D96+D97+D98+D99+D100 -> 20691 | E102: =E94+E96+E97+E98+E99+E100 -> 23693 | F102: =F94+F96+F97+F98+F99+F100 -> 22792
A104: Ingresos financieros | B104: ='BALANCE-PYG '!B88 -> 4762 | C104: ='BALANCE-PYG '!C88 -> 3830 | D104: ='BALANCE-PYG '!D88 -> 2341 | E104: ='BALANCE-PYG '!E88 -> 2535 | F104: ='BALANCE-PYG '!F88 -> 2708
A105: Gastos financieros | B105: ='BALANCE-PYG '!B89 -> -15708 | C105: ='BALANCE-PYG '!C89 -> -14076 | D105: ='BALANCE-PYG '!D89 -> -10704 | E105: ='BALANCE-PYG '!E89 -> -10216 | F105: ='BALANCE-PYG '!F89 -> -10386
A106: Resto de ingresos y gastos financieros | B106: =SUM(B107:B109) -> -609 | C106: =SUM(C107:C109) -> -4808 | D106: =SUM(D107:D109) -> -2889 | E106: =SUM(E107:E109) -> -2136 | F106: =SUM(F107:F109) -> 688
A107: Variación de valor razonable en instrumentos financieros (f) | B107: ='BALANCE-PYG '!B90 -> -675 | C107: ='BALANCE-PYG '!C90 -> -617 | D107: ='BALANCE-PYG '!D90 -> -575 | E107: ='BALANCE-PYG '!E90 -> -751 | F107: ='BALANCE-PYG '!F90 -> -413
A108: Diferencias de cambio (g) | B108: ='BALANCE-PYG '!B91 -> 15 | C108: ='BALANCE-PYG '!C91 -> -2076 | D108: ='BALANCE-PYG '!D91 -> -2077 | E108: ='BALANCE-PYG '!E91 -> -902 | F108: ='BALANCE-PYG '!F91 -> 1284
A109: Deterioro y resultado por enajenaciones de instrumentos financieros (h) | B109: ='BALANCE-PYG '!B92 -> 51 | C109: ='BALANCE-PYG '!C92 -> -2115 | D109: ='BALANCE-PYG '!D92 -> -237 | E109: ='BALANCE-PYG '!E92 -> -483 | F109: ='BALANCE-PYG '!F92 -> -183
A111: RESULTADO ANTES DE IMPUESTOS | B111: =B104+B102+B105+B106 -> 22605 | C111: =C104+C102+C105+C106 -> 14483 | D111: =D104+D102+D105+D106 -> 9439 | E111: =E104+E102+E105+E106 -> 13876 | F111: =F104+F102+F105+F106 -> 15802
A113: Impuestos sobre beneficios | B113: ='BALANCE-PYG '!B97 -> -3061 | C113: ='BALANCE-PYG '!C97 -> -2815 | D113: ='BALANCE-PYG '!D97 -> -2512 | E113: ='BALANCE-PYG '!E97 -> -2551 | F113: ='BALANCE-PYG '!F97 -> -2540
A115: RESULTADO DEL EJERCICIO (a) | B115: =B111+B113 -> 19544 | C115: =C111+C113 -> 11668 | D115: =D111+D113 -> 6927 | E115: =E111+E113 -> 11325 | F115: =F111+F113 -> 13262
A117: RGOC/RPT: Flujo neto de fondos generados | B117: =B115-B92-B98-B99-B100-B107-B108-B109 -> 39063 | C117: =C115-C92-C98-C99-C100-C107-C108-C109 -> 32706 | D117: =D115-D92-D98-D99-D100-D107-D108-D109 -> 31278 | E117: =E115-E92-E98-E99-E100-E107-E108-E109 -> 32877 | F117: =F115-F92-F98-F99-F100-F107-F108-F109 -> 28519
A118: (a) - (b) - (c) - (d)- (e) - (f) - (g) - (h) | B118: R.G.O.C.: Recursos Generados por Operaciones Corrientes o R.P.T: Recursos Provenientes de las Operaciones

Sheet PORCENTAJES
A1: Porcentajes Verticales y Horizontales | B1: 47. COMERCIO AL POR MENOR
A3: Basado en la Ordenación Funcional
A4: Numero de empresas incluidas que permanencen | B4: 910 | C4: 910 | D4: 910 | E4: 910 | F4: 910 | G4: 910
B5: 2008 | C5: 2009 | D5: 2010 | E5: 2011 | F5: 2012 | G5: 2012-08
B6: % | C6: % | D6: % | E6: % | F6: % | G6: %
A7: BALANCE - PATRIMONO EMPRESARIAL | B7: Porcentajes verticales (importancia relativa de cada masa) Porcentaje horizontal (intensidad de la variación)
A10: ACTIVO
A12: ACTIVO EXPLOTACIÓN | B12: ='Ordenacion Funcional '!B9/'Ordenacion Funcional '!B32 -> 0.8385726218 | C12: ='Ordenacion Funcional '!C9/'Ordenacion Funcional '!C32 -> 0.8236177914 | D12: ='Ordenacion Funcional '!D9/'Ordenacion Funcional '!D32 -> 0.8137154366 | E12: ='Ordenacion Funcional '!E9/'Ordenacion Funcional '!E32 -> 0.8088705167 | F12: ='Ordenacion Funcional '!F9/'Ordenacion Funcional '!F32 -> 0.7925385539 | G12: =('Ordenacion Funcional '!F9-'Ordenacion Funcional '!B9)/'Ordenacion Funcional '!B9 -> -0.05271321076
A13: ACTIVO NO CORRIENTE EXPLOTACIÓN | B13: ='Ordenacion Funcional '!B10/'Ordenacion Funcional '!B32 -> 0.4112075882 | C13: ='Ordenacion Funcional '!C10/'Ordenacion Funcional '!C32 -> 0.4098070897 | D13: ='Ordenacion Funcional '!D10/'Ordenacion Funcional '!D32 -> 0.4046421978 | E13: ='Ordenacion Funcional '!E10/'Ordenacion Funcional '!E32 -> 0.3981717917 | F13: ='Ordenacion Funcional '!F10/'Ordenacion Funcional '!F32 -> 0.3895276067 | G13: =('Ordenacion Funcional '!F10-'Ordenacion Funcional '!B10)/'Ordenacion Funcional '!B10 -> -0.05053516616
A14: Inmovilizado intangible | B14: ='Ordenacion Funcional '!B11/'Ordenacion Funcional '!B32 -> 0.006056435264 | C14: ='Ordenacion Funcional '!C11/'Ordenacion Funcional '!C32 -> 0.005719445786 | D14: ='Ordenacion Funcional '!D11/'Ordenacion Funcional '!D32 -> 0.008109498259 | E14: ='Ordenacion Funcional '!E11/'Ordenacion Funcional '!E32 -> 0.009673202898 | F14: ='Ordenacion Funcional '!F11/'Ordenacion Funcional '!F32 -> 0.009260830858 | G14: =('Ordenacion Funcional '!F11-'Ordenacion Funcional '!B11)/'Ordenacion Funcional '!B11 -> 0.5326205147
A15: Inmovilizado material | B15: ='Ordenacion Funcional '!B12/'Ordenacion Funcional '!B32 -> 0.4014193878 | C15: ='Ordenacion Funcional '!C12/'Ordenacion Funcional '!C32 -> 0.399101827 | D15: ='Ordenacion Funcional '!D12/'Ordenacion Funcional '!D32 -> 0.3905661705 | E15: ='Ordenacion Funcional '!E12/'Ordenacion Funcional '!E32 -> 0.381836272 | F15: ='Ordenacion Funcional '!F12/'Ordenacion Funcional '!F32 -> 0.3724393644 | G15: =('Ordenacion Funcional '!F12-'Ordenacion Funcional '!B12)/'Ordenacion Funcional '!B12 -> -0.07005129439
A16: Activos por impuesto diferido | B16: ='Ordenacion Funcional '!B13/'Ordenacion Funcional '!B32 -> 0.003731765114 | C16: ='Ordenacion Funcional '!C13/'Ordenacion Funcional '!C32 -> 0.004985816874 | D16: ='Ordenacion Funcional '!D13/'Ordenacion Funcional '!D32 -> 0.005966528964 | E16: ='Ordenacion Funcional '!E13/'Ordenacion Funcional '!E32 -> 0.006662316887 | F16: ='Ordenacion Funcional '!F13/'Ordenacion Funcional '!F32 -> 0.00782741149 | G16: =('Ordenacion Funcional '!F13-'Ordenacion Funcional '!B13)/'Ordenacion Funcional '!B13 -> 1.102352941
A17: ACTIVO CORRIENTE EXPLOTACIÓN | B17: ='Ordenacion Funcional '!B14/'Ordenacion Funcional '!B32 -> 0.4273650336 | C17: ='Ordenacion Funcional '!C14/'Ordenacion Funcional '!C32 -> 0.4138107017 | D17: ='Ordenacion Funcional '!D14/'Ordenacion Funcional '!D32 -> 0.4090732389 | E17: ='Ordenacion Funcional '!E14/'Ordenacion Funcional '!E32 -> 0.410698725 | F17: ='Ordenacion Funcional '!F14/'Ordenacion Funcional '!F32 -> 0.4030109472 | G17: =('Ordenacion Funcional '!F14-'Ordenacion Funcional '!B14)/'Ordenacion Funcional '!B14 -> -0.05480890975
A18: ACTIVOS COMERCIALES | B18: ='Ordenacion Funcional '!B15/'Ordenacion Funcional '!B32 -> 0.346504269 | C18: ='Ordenacion Funcional '!C15/'Ordenacion Funcional '!C32 -> 0.3329091411 | D18: ='Ordenacion Funcional '!D15/'Ordenacion Funcional '!D32 -> 0.3298526776 | E18: ='Ordenacion Funcional '!E15/'Ordenacion Funcional '!E32 -> 0.327613228 | F18: ='Ordenacion Funcional '!F15/'Ordenacion Funcional '!F32 -> 0.3197050814 | G18: =('Ordenacion Funcional '!F15-'Ordenacion Funcional '!B15)/'Ordenacion Funcional '!B15 -> -0.07521088125
A19: Existencias | B19: ='Ordenacion Funcional '!B16/'Ordenacion Funcional '!B32 -> 0.2297131919 | C19: ='Ordenacion Funcional '!C16/'Ordenacion Funcional '!C32 -> 0.2218518026 | D19: ='Ordenacion Funcional '!D16/'Ordenacion Funcional '!D32 -> 0.2240025555 | E19: ='Ordenacion Funcional '!E16/'Ordenacion Funcional '!E32 -> 0.2259616844 | F19: ='Ordenacion Funcional '!F16/'Ordenacion Funcional '!F32 -> 0.2240153044 | G19: =('Ordenacion Funcional '!F16-'Ordenacion Funcional '!B16)/'Ordenacion Funcional '!B16 -> -0.02255233144
A20: Clientes por ventas y prestaciones de servicios | B20: ='Ordenacion Funcional '!B17/'Ordenacion Funcional '!B32 -> 0.09605453645 | C20: ='Ordenacion Funcional '!C17/'Ordenacion Funcional '!C32 -> 0.09155512831 | D20: ='Ordenacion Funcional '!D17/'Ordenacion Funcional '!D32 -> 0.08888503874 | E20: ='Ordenacion Funcional '!E17/'Ordenacion Funcional '!E32 -> 0.08451182027 | F20: ='Ordenacion Funcional '!F17/'Ordenacion Funcional '!F32 -> 0.07682974504 | G20: =('Ordenacion Funcional '!F17-'Ordenacion Funcional '!B17)/'Ordenacion Funcional '!B17 -> -0.1982974347
A21: Otros deudores | B21: ='Ordenacion Funcional '!B18/'Ordenacion Funcional '!B32 -> 0.02073654068 | C21: ='Ordenacion Funcional '!C18/'Ordenacion Funcional '!C32 -> 0.01950221024 | D21: ='Ordenacion Funcional '!D18/'Ordenacion Funcional '!D32 -> 0.01696508335 | E21: ='Ordenacion Funcional '!E18/'Ordenacion Funcional '!E32 -> 0.01713972332 | F21: ='Ordenacion Funcional '!F18/'Ordenacion Funcional '!F32 -> 0.01886003191 | G21: =('Ordenacion Funcional '!F18-'Ordenacion Funcional '!B18)/'Ordenacion Funcional '!B18 -> -0.08839252633
A22: TESORERÍA | B22: ='Ordenacion Funcional '!B19/'Ordenacion Funcional '!B32 -> 0.08086076455 | C22: ='Ordenacion Funcional '!C19/'Ordenacion Funcional '!C32 -> 0.08090156064 | D22: ='Ordenacion Funcional '!D19/'Ordenacion Funcional '!D32 -> 0.07922056124 | E22: ='Ordenacion Funcional '!E19/'Ordenacion Funcional '!E32 -> 0.08308549702 | F22: ='Ordenacion Funcional '!F19/'Ordenacion Funcional '!F32 -> 0.08330586585 | G22: =('Ordenacion Funcional '!F19-'Ordenacion Funcional '!B19)/'Ordenacion Funcional '!B19 -> 0.03261754805
A23: Efectivo y otros activos líquidos equivalentes | B23: ='Ordenacion Funcional '!B20/'Ordenacion Funcional '!B32 -> 0.08086076455 | C23: ='Ordenacion Funcional '!C20/'Ordenacion Funcional '!C32 -> 0.08090156064 | D23: ='Ordenacion Funcional '!D20/'Ordenacion Funcional '!D32 -> 0.07922056124 | E23: ='Ordenacion Funcional '!E20/'Ordenacion Funcional '!E32 -> 0.08308549702 | F23: ='Ordenacion Funcional '!F20/'Ordenacion Funcional '!F32 -> 0.08330586585 | G23: =('Ordenacion Funcional '!F20-'Ordenacion Funcional '!B20)/'Ordenacion Funcional '!B20 -> 0.03261754805
A26: ACTIVO AJENO A LA EXPLOTACIÓN | B26: ='Ordenacion Funcional '!B22/'Ordenacion Funcional '!B32 -> 0.1614273782 | C26: ='Ordenacion Funcional '!C22/'Ordenacion Funcional '!C32 -> 0.1763822086 | D26: ='Ordenacion Funcional '!D22/'Ordenacion Funcional '!D32 -> 0.1862845634 | E26: ='Ordenacion Funcional '!E22/'Ordenacion Funcional '!E32 -> 0.1911294833 | F26: ='Ordenacion Funcional '!F22/'Ordenacion Funcional '!F32 -> 0.2074614461 | G26: =('Ordenacion Funcional '!F22-'Ordenacion Funcional '!B22)/'Ordenacion Funcional '!B22 -> 0.2881367456
A27: ACTIVO NO CORRIENTE AJENO EXPLOTACIÓN | B27: ='Ordenacion Funcional '!B23/'Ordenacion Funcional '!B32 -> 0.1046847921 | C27: ='Ordenacion Funcional '!C23/'Ordenacion Funcional '!C32 -> 0.1180075651 | D27: ='Ordenacion Funcional '!D23/'Ordenacion Funcional '!D32 -> 0.1235926951 | E27: ='Ordenacion Funcional '!E23/'Ordenacion Funcional '!E32 -> 0.1256454221 | F27: ='Ordenacion Funcional '!F23/'Ordenacion Funcional '!F32 -> 0.1350425591 | G27: =('Ordenacion Funcional '!F23-'Ordenacion Funcional '!B23)/'Ordenacion Funcional '!B23 -> 0.2929711254
A28: Inversiones inmobiliarias | B28: ='Ordenacion Funcional '!B24/'Ordenacion Funcional '!B32 -> 0.0522842244 | C28: ='Ordenacion Funcional '!C24/'Ordenacion Funcional '!C32 -> 0.06654355193 | D28: ='Ordenacion Funcional '!D24/'Ordenacion Funcional '!D32 -> 0.07105367169 | E28: ='Ordenacion Funcional '!E24/'Ordenacion Funcional '!E32 -> 0.07046318655 | F28: ='Ordenacion Funcional '!F24/'Ordenacion Funcional '!F32 -> 0.07022550348 | G28: =('Ordenacion Funcional '!F24-'Ordenacion Funcional '!B24)/'Ordenacion Funcional '!B24 -> 0.3462507347
A29: Inversiones en empresas del grupo y asociadas a largo plazo | B29: ='Ordenacion Funcional '!B25/'Ordenacion Funcional '!B32 -> 0.007013523258 | C29: ='Ordenacion Funcional '!C25/'Ordenacion Funcional '!C32 -> 0.005899828307 | D29: ='Ordenacion Funcional '!D25/'Ordenacion Funcional '!D32 -> 0.006332533826 | E29: ='Ordenacion Funcional '!E25/'Ordenacion Funcional '!E32 -> 0.007943406615 | F29: ='Ordenacion Funcional '!F25/'Ordenacion Funcional '!F32 -> 0.007767183785 | G29: =('Ordenacion Funcional '!F25-'Ordenacion Funcional '!B25)/'Ordenacion Funcional '!B25 -> 0.1100156495
A30: Inversiones financieras a largo plazo | B30: ='Ordenacion Funcional '!B26/'Ordenacion Funcional '!B32 -> 0.04538704441 | C30: ='Ordenacion Funcional '!C26/'Ordenacion Funcional '!C32 -> 0.04556418483 | D30: ='Ordenacion Funcional '!D26/'Ordenacion Funcional '!D32 -> 0.04620648955 | E30: ='Ordenacion Funcional '!E26/'Ordenacion Funcional '!E32 -> 0.04723882894 | F30: ='Ordenacion Funcional '!F26/'Ordenacion Funcional '!F32 -> 0.05704987182 | G30: =('Ordenacion Funcional '!F26-'Ordenacion Funcional '!B26)/'Ordenacion Funcional '!B26 -> 0.2598665119
A31: ACTIVO CORRIENTE AJENO EXPLOTACIÓN | B31: ='Ordenacion Funcional '!B27/'Ordenacion Funcional '!B32 -> 0.05674258614 | C31: ='Ordenacion Funcional '!C27/'Ordenacion Funcional '!C32 -> 0.0583746435 | D31: ='Ordenacion Funcional '!D27/'Ordenacion Funcional '!D32 -> 0.0626918683 | E31: ='Ordenacion Funcional '!E27/'Ordenacion Funcional '!E32 -> 0.06548406116 | F31: ='Ordenacion Funcional '!F27/'Ordenacion Funcional '!F32 -> 0.07241888697 | G31: =('Ordenacion Funcional '!F27-'Ordenacion Funcional '!B27)/'Ordenacion Funcional '!B27 -> 0.2792177647
A32: Inversiones en empresas del grupo y asociadas a corto plazo | B32: ='Ordenacion Funcional '!B28/'Ordenacion Funcional '!B32 -> 0.00363627583 | C32: ='Ordenacion Funcional '!C28/'Ordenacion Funcional '!C32 -> 0.003175392304 | D32: ='Ordenacion Funcional '!D28/'Ordenacion Funcional '!D32 -> 0.004151664618 | E32: ='Ordenacion Funcional '!E28/'Ordenacion Funcional '!E32 -> 0.004282221249 | F32: ='Ordenacion Funcional '!F28/'Ordenacion Funcional '!F32 -> 0.007831791687 | G32: =('Ordenacion Funcional '!F28-'Ordenacion Funcional '!B28)/'Ordenacion Funcional '!B28 -> 1.158768488
A33: Inversiones financieras a corto plazo | B33: ='Ordenacion Funcional '!B29/'Ordenacion Funcional '!B32 -> 0.05310631031 | C33: ='Ordenacion Funcional '!C29/'Ordenacion Funcional '!C32 -> 0.05514315663 | D33: ='Ordenacion Funcional '!D29/'Ordenacion Funcional '!D32 -> 0.0585088009 | E33: ='Ordenacion Funcional '!E29/'Ordenacion Funcional '!E32 -> 0.06120183991 | F33: ='Ordenacion Funcional '!F29/'Ordenacion Funcional '!F32 -> 0.06457285964 | G33: =('Ordenacion Funcional '!F29-'Ordenacion Funcional '!B29)/'Ordenacion Funcional '!B29 -> 0.2187248114
A34: Accionistas (socios) por desembolsos exigidos | B34: ='Ordenacion Funcional '!B30/'Ordenacion Funcional '!B32 -> 0 | C34: ='Ordenacion Funcional '!C30/'Ordenacion Funcional '!C32 -> 5.609456444e-05 | D34: ='Ordenacion Funcional '!D30/'Ordenacion Funcional '!D32 -> 3.140278402e-05 | E34: ='Ordenacion Funcional '!E30/'Ordenacion Funcional '!E32 -> 0 | F34: ='Ordenacion Funcional '!F30/'Ordenacion Funcional '!F32 -> 1.423563925e-05 | G34: =IFERROR(('Ordenacion Funcional '!F30-'Ordenacion Funcional '!B30)/'Ordenacion Funcional '!B30,"----") -> ----
A36: TOTAL ACTIVO | B36: ='Ordenacion Funcional '!B32/'Ordenacion Funcional '!B32 -> 1 | C36: ='Ordenacion Funcional '!C32/'Ordenacion Funcional '!C32 -> 1 | D36: ='Ordenacion Funcional '!D32/'Ordenacion Funcional '!D32 -> 1 | E36: ='Ordenacion Funcional '!E32/'Ordenacion Funcional '!E32 -> 1 | F36: ='Ordenacion Funcional '!F32/'Ordenacion Funcional '!F32 -> 1 | G36: =('Ordenacion Funcional '!F32-'Ordenacion Funcional '!B32)/'Ordenacion Funcional '!B32 -> 0.002309304059
B37: =B26+B12 -> 1 | C37: =C26+C12 -> 1 | D37: 1 | E37: 1 | F37: 1
A38: Inversiones financieras total | B38: ='Ordenacion Funcional '!B34/'Ordenacion Funcional '!B32 -> 0.09849335471 | C38: ='Ordenacion Funcional '!C34/'Ordenacion Funcional '!C32 -> 0.1007073415 | D38: ='Ordenacion Funcional '!D34/'Ordenacion Funcional '!D32 -> 0.1047152904 | E38: ='Ordenacion Funcional '!E34/'Ordenacion Funcional '!E32 -> 0.1084406689 | F38: ='Ordenacion Funcional '!F34/'Ordenacion Funcional '!F32 -> 0.1216227315 | G38: =('Ordenacion Funcional '!F34-'Ordenacion Funcional '!B34)/'Ordenacion Funcional '!B34 -> 0.2376834528
A39: Inversiones en empresas del grupo y asociadas total | B39: ='Ordenacion Funcional '!B35/'Ordenacion Funcional '!B32 -> 0.01064979909 | C39: ='Ordenacion Funcional '!C35/'Ordenacion Funcional '!C32 -> 0.009075220611 | D39: ='Ordenacion Funcional '!D35/'Ordenacion Funcional '!D32 -> 0.01048419844 | E39: ='Ordenacion Funcional '!E35/'Ordenacion Funcional '!E32 -> 0.01222562786 | F39: ='Ordenacion Funcional '!F35/'Ordenacion Funcional '!F32 -> 0.01559897547 | G39: =('Ordenacion Funcional '!F35-'Ordenacion Funcional '!B35)/'Ordenacion Funcional '!B35 -> 0.4681026487
B40: Porcentajes verticales (importancia relativa de cada masa) Porcentaje horizontal (intensidad de la variación)
A42: PATRIMONIO NETO | B42: ='Ordenacion Funcional '!B37/'Ordenacion Funcional '!$B$73 -> 0.4784649713 | C42: ='Ordenacion Funcional '!C37/'Ordenacion Funcional '!C73 -> 0.5011279407 | D42: ='Ordenacion Funcional '!D37/'Ordenacion Funcional '!D73 -> 0.5052134036 | E42: ='Ordenacion Funcional '!E37/'Ordenacion Funcional '!E73 -> 0.5158878971 | F42: ='Ordenacion Funcional '!F37/'Ordenacion Funcional '!F73 -> 0.53891531 | G42: =('Ordenacion Funcional '!F37-'Ordenacion Funcional '!B37)/'Ordenacion Funcional '!B37 -> 0.1289433117
A43: Fondos propios | B43: ='Ordenacion Funcional '!B38/'Ordenacion Funcional '!$B$73 -> 0.4776121533 | C43: ='Ordenacion Funcional '!C38/'Ordenacion Funcional '!C73 -> 0.500288722 | D43: ='Ordenacion Funcional '!D38/'Ordenacion Funcional '!D73 -> 0.5043655284 | E43: ='Ordenacion Funcional '!E38/'Ordenacion Funcional '!E73 -> 0.5150197474 | F43: ='Ordenacion Funcional '!F38/'Ordenacion Funcional '!F73 -> 0.5382571854 | G43: =('Ordenacion Funcional '!F38-'Ordenacion Funcional '!B38)/'Ordenacion Funcional '!B38 -> 0.1295780086
A44: Capital | B44: ='Ordenacion Funcional '!B39/'Ordenacion Funcional '!$B$73 -> 0.07541238748 | C44: ='Ordenacion Funcional '!C39/'Ordenacion Funcional '!C73 -> 0.07821342112 | D44: ='Ordenacion Funcional '!D39/'Ordenacion Funcional '!D73 -> 0.07955191476 | E44: ='Ordenacion Funcional '!E39/'Ordenacion Funcional '!E73 -> 0.08167543126 | F44: ='Ordenacion Funcional '!F39/'Ordenacion Funcional '!F73 -> 0.08612561747 | G44: =('Ordenacion Funcional '!F39-'Ordenacion Funcional '!B39)/'Ordenacion Funcional '!B39 -> 0.1446993072
A45: Capital escriturado | B45: ='Ordenacion Funcional '!B40/'Ordenacion Funcional '!$B$73 -> 0.07541238748 | C45: ='Ordenacion Funcional '!C40/'Ordenacion Funcional '!C73 -> 0.07821342112 | D45: ='Ordenacion Funcional '!D40/'Ordenacion Funcional '!D73 -> 0.07955191476 | E45: ='Ordenacion Funcional '!E40/'Ordenacion Funcional '!E73 -> 0.08167543126 | F45: ='Ordenacion Funcional '!F40/'Ordenacion Funcional '!F73 -> 0.08612561747 | G45: =('Ordenacion Funcional '!F40-'Ordenacion Funcional '!B40)/'Ordenacion Funcional '!B40 -> 0.1446993072
A46: (Capital no exigido) | B46: ='Ordenacion Funcional '!B41/'Ordenacion Funcional '!$B$73 -> 0 | C46: ='Ordenacion Funcional '!C41/'Ordenacion Funcional '!C73 -> 0 | D46: ='Ordenacion Funcional '!D41/'Ordenacion Funcional '!D73 -> 0 | E46: ='Ordenacion Funcional '!E41/'Ordenacion Funcional '!E73 -> 0 | F46: ='Ordenacion Funcional '!F41/'Ordenacion Funcional '!F73 -> 0 | G46: =IFERROR(('Ordenacion Funcional '!F41-'Ordenacion Funcional '!B41)/'Ordenacion Funcional '!B41,"----") -> ----
A47: Prima de emisión | B47: ='Ordenacion Funcional '!B42/'Ordenacion Funcional '!$B$73 -> 0.006100338383 | C47: ='Ordenacion Funcional '!C42/'Ordenacion Funcional '!C73 -> 0.006040614664 | D47: ='Ordenacion Funcional '!D42/'Ordenacion Funcional '!D73 -> 0.009105724511 | E47: ='Ordenacion Funcional '!E42/'Ordenacion Funcional '!E73 -> 0.009043496356 | F47: ='Ordenacion Funcional '!F42/'Ordenacion Funcional '!F73 -> 0.009060436859 | G47: =('Ordenacion Funcional '!F42-'Ordenacion Funcional '!B42)/'Ordenacion Funcional '!B42 -> 0.4886649874
A48: Reservas | B48: ='Ordenacion Funcional '!B43/'Ordenacion Funcional '!$B$73 -> 0.3673187377 | C48: ='Ordenacion Funcional '!C43/'Ordenacion Funcional '!C73 -> 0.395004724 | D48: ='Ordenacion Funcional '!D43/'Ordenacion Funcional '!D73 -> 0.4122925657 | E48: ='Ordenacion Funcional '!E43/'Ordenacion Funcional '!E73 -> 0.4259309035 | F48: ='Ordenacion Funcional '!F43/'Ordenacion Funcional '!F73 -> 0.4521151422 | G48: =('Ordenacion Funcional '!F43-'Ordenacion Funcional '!B43)/'Ordenacion Funcional '!B43 -> 0.2336947915
A49: (Acciones y participaciones en patrimonio propias) | B49: ='Ordenacion Funcional '!B44/'Ordenacion Funcional '!$B$73 -> -0.002093081198 | C49: ='Ordenacion Funcional '!C44/'Ordenacion Funcional '!C73 -> -0.001548649936 | D49: ='Ordenacion Funcional '!D44/'Ordenacion Funcional '!D73 -> -0.001524659307 | E49: ='Ordenacion Funcional '!E44/'Ordenacion Funcional '!E73 -> 0 | F49: ='Ordenacion Funcional '!F44/'Ordenacion Funcional '!F73 -> 0 | G49: =('Ordenacion Funcional '!F44-'Ordenacion Funcional '!B44)/'Ordenacion Funcional '!B44 -> -1
A50: Resultados de ejercicios anteriores | B50: ='Ordenacion Funcional '!B45/'Ordenacion Funcional '!$B$73 -> 0.008939772604 | C50: ='Ordenacion Funcional '!C45/'Ordenacion Funcional '!C73 -> 0.004769137871 | D50: ='Ordenacion Funcional '!D45/'Ordenacion Funcional '!D73 -> -0.007311434403 | E50: ='Ordenacion Funcional '!E45/'Ordenacion Funcional '!E73 -> -0.02045516619 | F50: ='Ordenacion Funcional '!F45/'Ordenacion Funcional '!F73 -> -0.03068327783 | G50: =('Ordenacion Funcional '!F45-'Ordenacion Funcional '!B45)/'Ordenacion Funcional '!B45 -> -4.44014733
A51: Otras aportaciones de socios | B51: ='Ordenacion Funcional '!B46/'Ordenacion Funcional '!$B$73 -> 0.0004862270428 | C51: ='Ordenacion Funcional '!C46/'Ordenacion Funcional '!C73 -> 0.004990216448 | D51: ='Ordenacion Funcional '!D46/'Ordenacion Funcional '!D73 -> 0.004943231346 | E51: ='Ordenacion Funcional '!E46/'Ordenacion Funcional '!E73 -> 0.006835730048 | F51: ='Ordenacion Funcional '!F46/'Ordenacion Funcional '!F73 -> 0.0072842671 | G51: =('Ordenacion Funcional '!F46-'Ordenacion Funcional '!B46)/'Ordenacion Funcional '!B46 -> 14.01580135
A52: Resultado del ejercicio | B52: ='Ordenacion Funcional '!B47/'Ordenacion Funcional '!$B$73 -> 0.02145106394 | C52: ='Ordenacion Funcional '!C47/'Ordenacion Funcional '!C73 -> 0.01283355643 | D52: ='Ordenacion Funcional '!D47/'Ordenacion Funcional '!D73 -> 0.007500933962 | E52: ='Ordenacion Funcional '!E47/'Ordenacion Funcional '!E73 -> 0.01227440032 | F52: ='Ordenacion Funcional '!F47/'Ordenacion Funcional '!F73 -> 0.01452254213 | G52: =('Ordenacion Funcional '!F47-'Ordenacion Funcional '!B47)/'Ordenacion Funcional '!B47 -> -0.3214285714
A53: (Dividendo a cuenta) | B53: ='Ordenacion Funcional '!B48/'Ordenacion Funcional '!$B$73 -> -3.292733924e-06 | C53: ='Ordenacion Funcional '!C48/'Ordenacion Funcional '!C73 -> -1.429861446e-05 | D53: ='Ordenacion Funcional '!D48/'Ordenacion Funcional '!D73 -> -0.0001927481226 | E53: ='Ordenacion Funcional '!E48/'Ordenacion Funcional '!E73 -> -0.0002850478837 | F53: ='Ordenacion Funcional '!F48/'Ordenacion Funcional '!F73 -> -0.0001675425235 | G53: =('Ordenacion Funcional '!F48-'Ordenacion Funcional '!B48)/'Ordenacion Funcional '!B48 -> 50
A54: Subvenciones, donaciones y legados recibidos | B54: ='Ordenacion Funcional '!B49/'Ordenacion Funcional '!$B$73 -> 0.0008528180863 | C54: ='Ordenacion Funcional '!C49/'Ordenacion Funcional '!C73 -> 0.0008392186797 | D54: ='Ordenacion Funcional '!D49/'Ordenacion Funcional '!D73 -> 0.0008478751685 | E54: ='Ordenacion Funcional '!E49/'Ordenacion Funcional '!E73 -> 0.0008681496382 | F54: ='Ordenacion Funcional '!F49/'Ordenacion Funcional '!F73 -> 0.0006581245531 | G54: =('Ordenacion Funcional '!F49-'Ordenacion Funcional '!B49)/'Ordenacion Funcional '!B49 -> -0.2265122265
A56: PASIVO TOTAL | B56: ='Ordenacion Funcional '!B51/'Ordenacion Funcional '!B73 -> 0.5215350287 | C56: ='Ordenacion Funcional '!C51/'Ordenacion Funcional '!C73 -> 0.4988720593 | D56: ='Ordenacion Funcional '!D51/'Ordenacion Funcional '!D73 -> 0.4947865964 | E56: ='Ordenacion Funcional '!E51/'Ordenacion Funcional '!E73 -> 0.4841121029 | F56: ='Ordenacion Funcional '!F51/'Ordenacion Funcional '!F73 -> 0.46108469 | G56: =('Ordenacion Funcional '!F51-'Ordenacion Funcional '!B51)/'Ordenacion Funcional '!B51 -> -0.1138668558
A57: PASIVO NO CORRIENTE | B57: ='Ordenacion Funcional '!B52/'Ordenacion Funcional '!B73 -> 0.2247718959 | C57: ='Ordenacion Funcional '!C52/'Ordenacion Funcional '!C73 -> 0.2324437762 | D57: ='Ordenacion Funcional '!D52/'Ordenacion Funcional '!D73 -> 0.2276301185 | E57: ='Ordenacion Funcional '!E52/'Ordenacion Funcional '!E73 -> 0.2177635772 | F57: ='Ordenacion Funcional '!F52/'Ordenacion Funcional '!F73 -> 0.2058363931 | G57: =('Ordenacion Funcional '!F52-'Ordenacion Funcional '!B52)/'Ordenacion Funcional '!B52 -> -0.08212843463
A58: CRÉDITOS PUROS A LARGO PLAZO | B58: ='Ordenacion Funcional '!B53/'Ordenacion Funcional '!B73 -> 0.2240002985 | C58: ='Ordenacion Funcional '!C53/'Ordenacion Funcional '!C73 -> 0.2316474534 | D58: ='Ordenacion Funcional '!D53/'Ordenacion Funcional '!D73 -> 0.2263772557 | E58: ='Ordenacion Funcional '!E53/'Ordenacion Funcional '!E73 -> 0.2168423197 | F58: ='Ordenacion Funcional '!F53/'Ordenacion Funcional '!F73 -> 0.2050293418 | G58: =('Ordenacion Funcional '!F53-'Ordenacion Funcional '!B53)/'Ordenacion Funcional '!B53 -> -0.08257793283
A59: Deudas con entidades de crédito | B59: ='Ordenacion Funcional '!B54/'Ordenacion Funcional '!B73 -> 0.1878219333 | C59: ='Ordenacion Funcional '!C54/'Ordenacion Funcional '!C73 -> 0.2024573819 | D59: ='Ordenacion Funcional '!D54/'Ordenacion Funcional '!D73 -> 0.1978007223 | E59: ='Ordenacion Funcional '!E54/'Ordenacion Funcional '!E73 -> 0.1857504238 | F59: ='Ordenacion Funcional '!F54/'Ordenacion Funcional '!F73 -> 0.174122674 | G59: =('Ordenacion Funcional '!F54-'Ordenacion Funcional '!B54)/'Ordenacion Funcional '!B54 -> -0.07079661532
A60: Deudas con empresas del grupo y asociadas a largo plazo | B60: ='Ordenacion Funcional '!B55/'Ordenacion Funcional '!B73 -> 0.004770073878 | C60: ='Ordenacion Funcional '!C55/'Ordenacion Funcional '!C73 -> 0.005277288631 | D60: ='Ordenacion Funcional '!D55/'Ordenacion Funcional '!D73 -> 0.002107235093 | E60: ='Ordenacion Funcional '!E55/'Ordenacion Funcional '!E73 -> 0.001896706451 | F60: ='Ordenacion Funcional '!F55/'Ordenacion Funcional '!F73 -> 0.002577745754 | G60: =('Ordenacion Funcional '!F55-'Ordenacion Funcional '!B55)/'Ordenacion Funcional '!B55 -> -0.4583525081
A61: Otras deudas a largo plazo | B61: ='Ordenacion Funcional '!B56/'Ordenacion Funcional '!B73 -> 0.03140829132 | C61: ='Ordenacion Funcional '!C56/'Ordenacion Funcional '!C73 -> 0.02391278285 | D61: ='Ordenacion Funcional '!D56/'Ordenacion Funcional '!D73 -> 0.02646929836 | E61: ='Ordenacion Funcional '!E56/'Ordenacion Funcional '!E73 -> 0.02919518952 | F61: ='Ordenacion Funcional '!F56/'Ordenacion Funcional '!F73 -> 0.02832892211 | G61: =('Ordenacion Funcional '!F56-'Ordenacion Funcional '!B56)/'Ordenacion Funcional '!B56 -> -0.09596030193
A62: OTROS PASIVOS NO CORRIENTES | B62: ='Ordenacion Funcional '!B57/'Ordenacion Funcional '!B73 -> 0.0007715973162 | C62: ='Ordenacion Funcional '!C57/'Ordenacion Funcional '!C73 -> 0.0007963228363 | D62: ='Ordenacion Funcional '!D57/'Ordenacion Funcional '!D73 -> 0.001252862797 | E62: ='Ordenacion Funcional '!E57/'Ordenacion Funcional '!E73 -> 0.0009212574188 | F62: ='Ordenacion Funcional '!F57/'Ordenacion Funcional '!F73 -> 0.0008070512406 | G62: =('Ordenacion Funcional '!F57-'Ordenacion Funcional '!B57)/'Ordenacion Funcional '!B57 -> 0.04836415363
A63: Provisiones a largo plazo | B63: ='Ordenacion Funcional '!B58/'Ordenacion Funcional '!B73 -> 0.0003270782365 | C63: ='Ordenacion Funcional '!C58/'Ordenacion Funcional '!C73 -> 0.0003332677064 | D63: ='Ordenacion Funcional '!D58/'Ordenacion Funcional '!D73 -> 0.0005316816191 | E63: ='Ordenacion Funcional '!E58/'Ordenacion Funcional '!E73 -> 0.0003338203353 | F63: ='Ordenacion Funcional '!F58/'Ordenacion Funcional '!F73 -> 0.0003208494077 | G63: =('Ordenacion Funcional '!F58-'Ordenacion Funcional '!B58)/'Ordenacion Funcional '!B58 -> -0.01677852349
A64: Pasivos por impuesto diferido | B64: ='Ordenacion Funcional '!B59/'Ordenacion Funcional '!B73 -> 0.0003764692453 | C64: ='Ordenacion Funcional '!C59/'Ordenacion Funcional '!C73 -> 0.0003717639761 | D64: ='Ordenacion Funcional '!D59/'Ordenacion Funcional '!D73 -> 0.0003237735318 | E64: ='Ordenacion Funcional '!E59/'Ordenacion Funcional '!E73 -> 0.0003208143482 | F64: ='Ordenacion Funcional '!F59/'Ordenacion Funcional '!F73 -> 0.0003044236701 | G64: =('Ordenacion Funcional '!F59-'Ordenacion Funcional '!B59)/'Ordenacion Funcional '!B59 -> -0.1895043732
A65: Periodificaciones a largo plazo | B65: ='Ordenacion Funcional '!B60/'Ordenacion Funcional '!B73 -> 6.804983443e-05 | C65: ='Ordenacion Funcional '!C60/'Ordenacion Funcional '!C73 -> 9.129115389e-05 | D65: ='Ordenacion Funcional '!D60/'Ordenacion Funcional '!D73 -> 0.000397407646 | E65: ='Ordenacion Funcional '!E60/'Ordenacion Funcional '!E73 -> 0.0002666227353 | F65: ='Ordenacion Funcional '!F60/'Ordenacion Funcional '!F73 -> 0.0001817781627 | G65: =('Ordenacion Funcional '!F60-'Ordenacion Funcional '!B60)/'Ordenacion Funcional '!B60 -> 1.677419355
A67: PASIVO CORRIENTE | B67: ='Ordenacion Funcional '!B62/'Ordenacion Funcional '!B73 -> 0.2967631328 | C67: ='Ordenacion Funcional '!C62/'Ordenacion Funcional '!C73 -> 0.2664282831 | D67: ='Ordenacion Funcional '!D62/'Ordenacion Funcional '!D73 -> 0.2671564779 | E67: ='Ordenacion Funcional '!E62/'Ordenacion Funcional '!E73 -> 0.2663485258 | F67: ='Ordenacion Funcional '!F62/'Ordenacion Funcional '!F73 -> 0.2552482969 | G67: =('Ordenacion Funcional '!F62-'Ordenacion Funcional '!B62)/'Ordenacion Funcional '!B62 -> -0.1379059102
A68: PASIVOS COMERCIALES | B68: ='Ordenacion Funcional '!B63/'Ordenacion Funcional '!B73 -> 0.1938915395 | C68: ='Ordenacion Funcional '!C63/'Ordenacion Funcional '!C73 -> 0.1740691327 | D68: ='Ordenacion Funcional '!D63/'Ordenacion Funcional '!D73 -> 0.1732415795 | E68: ='Ordenacion Funcional '!E63/'Ordenacion Funcional '!E73 -> 0.1758160173 | F68: ='Ordenacion Funcional '!F63/'Ordenacion Funcional '!F73 -> 0.1662339397 | G68: =('Ordenacion Funcional '!F63-'Ordenacion Funcional '!B63)/'Ordenacion Funcional '!B63 -> -0.1406648024
A69: Proveedores | B69: ='Ordenacion Funcional '!B64/'Ordenacion Funcional '!B73 -> 0.1404438825 | C69: ='Ordenacion Funcional '!C64/'Ordenacion Funcional '!C73 -> 0.1260048901 | D69: ='Ordenacion Funcional '!D64/'Ordenacion Funcional '!D73 -> 0.1278104138 | E69: ='Ordenacion Funcional '!E64/'Ordenacion Funcional '!E73 -> 0.1272050567 | F69: ='Ordenacion Funcional '!F64/'Ordenacion Funcional '!F73 -> 0.1174462139 | G69: =('Ordenacion Funcional '!F64-'Ordenacion Funcional '!B64)/'Ordenacion Funcional '!B64 -> -0.1618187218
A70: Otros acreedores | B70: ='Ordenacion Funcional '!B65/'Ordenacion Funcional '!B73 -> 0.05344765706 | C70: ='Ordenacion Funcional '!C65/'Ordenacion Funcional '!C73 -> 0.04806424257 | D70: ='Ordenacion Funcional '!D65/'Ordenacion Funcional '!D73 -> 0.04543116564 | E70: ='Ordenacion Funcional '!E65/'Ordenacion Funcional '!E73 -> 0.04861096058 | F70: ='Ordenacion Funcional '!F65/'Ordenacion Funcional '!F73 -> 0.04878772581 | G70: =('Ordenacion Funcional '!F65-'Ordenacion Funcional '!B65)/'Ordenacion Funcional '!B65 -> -0.08507885658
A71: CRÉDITOS PUROS A CORTO PLAZO | B71: ='Ordenacion Funcional '!B66/'Ordenacion Funcional '!B73 -> 0.102536832 | C71: ='Ordenacion Funcional '!C66/'Ordenacion Funcional '!C73 -> 0.09217106862 | D71: ='Ordenacion Funcional '!D66/'Ordenacion Funcional '!D73 -> 0.09370699037 | E71: ='Ordenacion Funcional '!E66/'Ordenacion Funcional '!E73 -> 0.09010331089 | F71: ='Ordenacion Funcional '!F66/'Ordenacion Funcional '!F73 -> 0.0888654305 | G71: =('Ordenacion Funcional '!F66-'Ordenacion Funcional '!B66)/'Ordenacion Funcional '!B66 -> -0.1313302148
A72: Deudas con entidades de crédito | B72: ='Ordenacion Funcional '!B67/'Ordenacion Funcional '!B73 -> 0.04449690867 | C72: ='Ordenacion Funcional '!C67/'Ordenacion Funcional '!C73 -> 0.04096003097 | D72: ='Ordenacion Funcional '!D67/'Ordenacion Funcional '!D73 -> 0.03761836955 | E72: ='Ordenacion Funcional '!E67/'Ordenacion Funcional '!E73 -> 0.03244126713 | F72: ='Ordenacion Funcional '!F67/'Ordenacion Funcional '!F73 -> 0.03006019485 | G72: =('Ordenacion Funcional '!F67-'Ordenacion Funcional '!B67)/'Ordenacion Funcional '!B67 -> -0.3228830073
A73: Deudas con empresas del grupo y asociadas a corto plazo | B73: ='Ordenacion Funcional '!B68/'Ordenacion Funcional '!B73 -> 0.003864572049 | C73: ='Ordenacion Funcional '!C68/'Ordenacion Funcional '!C73 -> 0.003629648287 | D73: ='Ordenacion Funcional '!D68/'Ordenacion Funcional '!D73 -> 0.007519342491 | E73: ='Ordenacion Funcional '!E68/'Ordenacion Funcional '!E73 -> 0.006329580384 | F73: ='Ordenacion Funcional '!F68/'Ordenacion Funcional '!F73 -> 0.00543034885 | G73: =('Ordenacion Funcional '!F68-'Ordenacion Funcional '!B68)/'Ordenacion Funcional '!B68 -> 0.4084067026
A74: Otras deudas a corto plazo | B74: ='Ordenacion Funcional '!B69/'Ordenacion Funcional '!B73 -> 0.05417535125 | C74: ='Ordenacion Funcional '!C69/'Ordenacion Funcional '!C73 -> 0.04758138936 | D74: ='Ordenacion Funcional '!D69/'Ordenacion Funcional '!D73 -> 0.04856927833 | E74: ='Ordenacion Funcional '!E69/'Ordenacion Funcional '!E73 -> 0.05133246338 | F74: ='Ordenacion Funcional '!F69/'Ordenacion Funcional '!F73 -> 0.0533748868 | G74: =('Ordenacion Funcional '!F69-'Ordenacion Funcional '!B69)/'Ordenacion Funcional '!B69 -> -0.01250025325
A75: OTROS PASIVOS CORRIENTES | B75: ='Ordenacion Funcional '!B70/'Ordenacion Funcional '!B73 -> 0.0003347612823 | C75: ='Ordenacion Funcional '!C70/'Ordenacion Funcional '!C73 -> 0.0001880817749 | D75: ='Ordenacion Funcional '!D70/'Ordenacion Funcional '!D73 -> 0.0002079080873 | E75: ='Ordenacion Funcional '!E70/'Ordenacion Funcional '!E73 -> 0.0004291975739 | F75: ='Ordenacion Funcional '!F70/'Ordenacion Funcional '!F73 -> 0.0001489266876 | G75: =('Ordenacion Funcional '!F70-'Ordenacion Funcional '!B70)/'Ordenacion Funcional '!B70 -> -0.5540983607
A76: Provisiones a corto plazo | B76: ='Ordenacion Funcional '!B71/'Ordenacion Funcional '!B73 -> 0.0003347612823 | C76: ='Ordenacion Funcional '!C71/'Ordenacion Funcional '!C73 -> 0.0001880817749 | D76: ='Ordenacion Funcional '!D71/'Ordenacion Funcional '!D73 -> 0.0002079080873 | E76: ='Ordenacion Funcional '!E71/'Ordenacion Funcional '!E73 -> 0.0004291975739 | F76: ='Ordenacion Funcional '!F71/'Ordenacion Funcional '!F73 -> 0.0001489266876 | G76: =('Ordenacion Funcional '!F71-'Ordenacion Funcional '!B71)/'Ordenacion Funcional '!B71 -> -0.5540983607
A78: TOTAL PATRIMONIO NETO Y PASIVO | B78: ='Ordenacion Funcional '!B73/'Ordenacion Funcional '!B73 -> 1 | C78: ='Ordenacion Funcional '!C73/'Ordenacion Funcional '!C73 -> 1 | D78: ='Ordenacion Funcional '!D73/'Ordenacion Funcional '!D73 -> 1 | E78: ='Ordenacion Funcional '!E73/'Ordenacion Funcional '!E73 -> 1 | F78: ='Ordenacion Funcional '!F73/'Ordenacion Funcional '!F73 -> 1 | G78: =('Ordenacion Funcional '!F73-'Ordenacion Funcional '!B73)/'Ordenacion Funcional '!B73 -> 0.002309304059
A80: Deudas con entidades de crédito total | B80: ='Ordenacion Funcional '!B75/'Ordenacion Funcional '!B73 -> 0.232318842 | C80: ='Ordenacion Funcional '!C75/'Ordenacion Funcional '!C73 -> 0.2434174129 | D80: ='Ordenacion Funcional '!D75/'Ordenacion Funcional '!D73 -> 0.2354190918 | E80: ='Ordenacion Funcional '!E75/'Ordenacion Funcional '!E73 -> 0.2181916909 | F80: ='Ordenacion Funcional '!F75/'Ordenacion Funcional '!F73 -> 0.2041828688 | G80: =('Ordenacion Funcional '!F75-'Ordenacion Funcional '!B75)/'Ordenacion Funcional '!B75 -> -0.1190796778
A81: Deudas con empresas del grupo y asociadas total | B81: ='Ordenacion Funcional '!B76/'Ordenacion Funcional '!B73 -> 0.008634645927 | C81: ='Ordenacion Funcional '!C76/'Ordenacion Funcional '!C73 -> 0.008906936918 | D81: ='Ordenacion Funcional '!D76/'Ordenacion Funcional '!D73 -> 0.009626577584 | E81: ='Ordenacion Funcional '!E76/'Ordenacion Funcional '!E73 -> 0.008226286834 | F81: ='Ordenacion Funcional '!F76/'Ordenacion Funcional '!F73 -> 0.008008094603 | G81: =('Ordenacion Funcional '!F76-'Ordenacion Funcional '!B76)/'Ordenacion Funcional '!B76 -> -0.07042074488
A83: Porcentajes Verticales y Horizontales | B83: 47. COMERCIO AL POR MENOR
A85: Basado en la Ordenación Funcional
A86: =A4 -> Numero de empresas incluidas que permanencen | B86: =B4 -> 910 | C86: =C4 -> 910 | D86: 910 | E86: 910 | F86: 910 | G86: 910
A89: CUENTA DE PÉRDIDAS Y GANANCIAS | B89: Porcentajes verticales (importancia relativa de cada masa) Porcentaje horizontal (intensidad de la variación)
B92: =B5 -> 2008 | C92: =C5 -> 2009 | D92: 2010 | E92: 2011 | F92: 2012 | G92: 2012-08
B93: % | C93: % | D93: % | E93: % | F93: % | G93: %
A94: Importe neto de la cifra de negocios | B94: ='Ordenacion Funcional '!B83/'Ordenacion Funcional '!B83 -> 1 | C94: ='Ordenacion Funcional '!C83/'Ordenacion Funcional '!C83 -> 1 | D94: ='Ordenacion Funcional '!D83/'Ordenacion Funcional '!D83 -> 1 | E94: ='Ordenacion Funcional '!E83/'Ordenacion Funcional '!E83 -> 1 | F94: ='Ordenacion Funcional '!F83/'Ordenacion Funcional '!F83 -> 1 | G94: =('Ordenacion Funcional '!F83-'Ordenacion Funcional '!B83)/'Ordenacion Funcional '!B83 -> -0.1266297513
A95: Consumo de existencias | B95: ='Ordenacion Funcional '!B84/'Ordenacion Funcional '!B83 -> -0.7118071506 | C95: ='Ordenacion Funcional '!C84/'Ordenacion Funcional '!C83 -> -0.687236964 | D95: ='Ordenacion Funcional '!D84/'Ordenacion Funcional '!D83 -> -0.6958322871 | E95: ='Ordenacion Funcional '!E84/'Ordenacion Funcional '!E83 -> -0.7005458094 | F95: ='Ordenacion Funcional '!F84/'Ordenacion Funcional '!F83 -> -0.7020937191 | G95: =('Ordenacion Funcional '!F84-'Ordenacion Funcional '!B84)/'Ordenacion Funcional '!B84 -> -0.1385478981
A96: Aprovisionamientos | B96: ='Ordenacion Funcional '!B85/'Ordenacion Funcional '!B83 -> -0.7102224498 | C96: ='Ordenacion Funcional '!C85/'Ordenacion Funcional '!C83 -> -0.6875544988 | D96: ='Ordenacion Funcional '!D85/'Ordenacion Funcional '!D83 -> -0.6968134298 | E96: ='Ordenacion Funcional '!E85/'Ordenacion Funcional '!E83 -> -0.7017982907 | F96: ='Ordenacion Funcional '!F85/'Ordenacion Funcional '!F83 -> -0.701630556 | G96: =('Ordenacion Funcional '!F85-'Ordenacion Funcional '!B85)/'Ordenacion Funcional '!B85 -> -0.1371953205
A97: Variación de existencias de productos terminados y en curso de fabricación | B97: ='Ordenacion Funcional '!B86/'Ordenacion Funcional '!B83 -> -0.001584700806 | C97: ='Ordenacion Funcional '!C86/'Ordenacion Funcional '!C83 -> 0.0003175347397 | D97: ='Ordenacion Funcional '!D86/'Ordenacion Funcional '!D83 -> 0.0009811427067 | E97: ='Ordenacion Funcional '!E86/'Ordenacion Funcional '!E83 -> 0.001252481359 | F97: ='Ordenacion Funcional '!F86/'Ordenacion Funcional '!F83 -> -0.0004631631332 | G97: =('Ordenacion Funcional '!F86-'Ordenacion Funcional '!B86)/'Ordenacion Funcional '!B86 -> -0.7447386286
A99: RESULTADO BRUTO DE EXPLOTACIÓN | B99: ='Ordenacion Funcional '!B88/'Ordenacion Funcional '!B83 -> 0.2881928494 | C99: ='Ordenacion Funcional '!C88/'Ordenacion Funcional '!C83 -> 0.312763036 | D99: ='Ordenacion Funcional '!D88/'Ordenacion Funcional '!D83 -> 0.3041677129 | E99: ='Ordenacion Funcional '!E88/'Ordenacion Funcional '!E83 -> 0.2994541906 | F99: ='Ordenacion Funcional '!F88/'Ordenacion Funcional '!F83 -> 0.2979062809 | G99: =('Ordenacion Funcional '!F88-'Ordenacion Funcional '!B88)/'Ordenacion Funcional '!B88 -> -0.09719313571
A101: Gastos de personal | B101: ='Ordenacion Funcional '!B90/'Ordenacion Funcional '!B83 -> -0.1408565561 | C101: ='Ordenacion Funcional '!C90/'Ordenacion Funcional '!C83 -> -0.157162331 | D101: ='Ordenacion Funcional '!D90/'Ordenacion Funcional '!D83 -> -0.1548368131 | E101: ='Ordenacion Funcional '!E90/'Ordenacion Funcional '!E83 -> -0.1537827208 | F101: ='Ordenacion Funcional '!F90/'Ordenacion Funcional '!F83 -> -0.1557213581 | G101: =('Ordenacion Funcional '!F90-'Ordenacion Funcional '!B90)/'Ordenacion Funcional '!B90 -> -0.03446168887
A102: Otros gastos de explotación | B102: ='Ordenacion Funcional '!B91/'Ordenacion Funcional '!B83 -> -0.110848369 | C102: ='Ordenacion Funcional '!C91/'Ordenacion Funcional '!C83 -> -0.1174345178 | D102: ='Ordenacion Funcional '!D91/'Ordenacion Funcional '!D83 -> -0.1167082111 | E102: ='Ordenacion Funcional '!E91/'Ordenacion Funcional '!E83 -> -0.1137869754 | F102: ='Ordenacion Funcional '!F91/'Ordenacion Funcional '!F83 -> -0.1143963666 | G102: =('Ordenacion Funcional '!F91-'Ordenacion Funcional '!B91)/'Ordenacion Funcional '!B91 -> -0.09867520745
A103: Amortización del inmovilizado | B103: ='Ordenacion Funcional '!B92/'Ordenacion Funcional '!B83 -> -0.02363710889 | C103: ='Ordenacion Funcional '!C92/'Ordenacion Funcional '!C83 -> -0.02750768719 | D103: ='Ordenacion Funcional '!D92/'Ordenacion Funcional '!D83 -> -0.02798155305 | E103: ='Ordenacion Funcional '!E92/'Ordenacion Funcional '!E83 -> -0.02673713069 | F103: ='Ordenacion Funcional '!F92/'Ordenacion Funcional '!F83 -> -0.02498124559 | G103: =('Ordenacion Funcional '!F92-'Ordenacion Funcional '!B92)/'Ordenacion Funcional '!B92 -> -0.07696509035
A105: RESULTADO NETO DE EXPLOTACIÓN | B105: ='Ordenacion Funcional '!B94/'Ordenacion Funcional '!B83 -> 0.01285081543 | C105: ='Ordenacion Funcional '!C94/'Ordenacion Funcional '!C83 -> 0.01065850007 | D105: ='Ordenacion Funcional '!D94/'Ordenacion Funcional '!D83 -> 0.004641135725 | E105: ='Ordenacion Funcional '!E94/'Ordenacion Funcional '!E83 -> 0.005147363754 | F105: ='Ordenacion Funcional '!F94/'Ordenacion Funcional '!F83 -> 0.002807310587 | G105: =('Ordenacion Funcional '!F94-'Ordenacion Funcional '!B94)/'Ordenacion Funcional '!B94 -> -0.809208874
A107: Otros ingresos de explotación | B107: ='Ordenacion Funcional '!B96/'Ordenacion Funcional '!B83 -> 0.02001478193 | C107: ='Ordenacion Funcional '!C96/'Ordenacion Funcional '!C83 -> 0.0177745032 | D107: ='Ordenacion Funcional '!D96/'Ordenacion Funcional '!D83 -> 0.01824361982 | E107: ='Ordenacion Funcional '!E96/'Ordenacion Funcional '!E83 -> 0.01899039007 | F107: ='Ordenacion Funcional '!F96/'Ordenacion Funcional '!F83 -> 0.01962530595 | G107: =('Ordenacion Funcional '!F96-'Ordenacion Funcional '!B96)/'Ordenacion Funcional '!B96 -> -0.1436250269
A108: Trabajos realizados por la empresa para su activo | B108: ='Ordenacion Funcional '!B97/'Ordenacion Funcional '!B83 -> 0.0005917077007 | C108: ='Ordenacion Funcional '!C97/'Ordenacion Funcional '!C83 -> 0.0008273268412 | D108: ='Ordenacion Funcional '!D97/'Ordenacion Funcional '!D83 -> 0.0007667856859 | E108: ='Ordenacion Funcional '!E97/'Ordenacion Funcional '!E83 -> 0.0006453625324 | F108: ='Ordenacion Funcional '!F97/'Ordenacion Funcional '!F83 -> 0.0003030269435 | G108: =('Ordenacion Funcional '!F97-'Ordenacion Funcional '!B97)/'Ordenacion Funcional '!B97 -> -0.5527272727
A109: Imputación de subvenciones de inmovilizado no financiero y otras | B109: ='Ordenacion Funcional '!B98/'Ordenacion Funcional '!B83 -> 0.0002517447308 | C109: ='Ordenacion Funcional '!C98/'Ordenacion Funcional '!C83 -> 0.0002319492044 | D109: ='Ordenacion Funcional '!D98/'Ordenacion Funcional '!D83 -> 0.0001678109249 | E109: ='Ordenacion Funcional '!E98/'Ordenacion Funcional '!E83 -> 0.0001673162121 | F109: ='Ordenacion Funcional '!F98/'Ordenacion Funcional '!F83 -> 0.0001219498675 | G109: =('Ordenacion Funcional '!F98-'Ordenacion Funcional '!B98)/'Ordenacion Funcional '!B98 -> -0.5769230769
A110: Excesos de provisiones | B110: ='Ordenacion Funcional '!B99/'Ordenacion Funcional '!B83 -> 2.151664366e-05 | C110: ='Ordenacion Funcional '!C99/'Ordenacion Funcional '!C83 -> 0.0002170647634 | D110: ='Ordenacion Funcional '!D99/'Ordenacion Funcional '!D83 -> 6.124486309e-06 | E110: ='Ordenacion Funcional '!E99/'Ordenacion Funcional '!E83 -> 0 | F110: ='Ordenacion Funcional '!F99/'Ordenacion Funcional '!F83 -> 0.0001034726149 | G110: =('Ordenacion Funcional '!F99-'Ordenacion Funcional '!B99)/'Ordenacion Funcional '!B99 -> 3.2
A111: Deterioro y resultado por enajenaciones del inmovilizado | B111: ='Ordenacion Funcional '!B100/'Ordenacion Funcional '!B83 -> 0.003019860938 | C111: ='Ordenacion Funcional '!C100/'Ordenacion Funcional '!C83 -> 0.006927466879 | D111: ='Ordenacion Funcional '!D100/'Ordenacion Funcional '!D83 -> 0.001518872605 | E111: ='Ordenacion Funcional '!E100/'Ordenacion Funcional '!E83 -> 0.003365446095 | F111: ='Ordenacion Funcional '!F100/'Ordenacion Funcional '!F83 -> 0.005114503535 | G111: =('Ordenacion Funcional '!F100-'Ordenacion Funcional '!B100)/'Ordenacion Funcional '!B100 -> 0.4791592447
A113: RESULTADO ANTES DE INTERESES E IMPUESTOS | B113: ='Ordenacion Funcional '!B102/'Ordenacion Funcional '!B83 -> 0.03675042737 | C113: ='Ordenacion Funcional '!C102/'Ordenacion Funcional '!C83 -> 0.03663681096 | D113: ='Ordenacion Funcional '!D102/'Ordenacion Funcional '!D83 -> 0.02534434924 | E113: ='Ordenacion Funcional '!E102/'Ordenacion Funcional '!E83 -> 0.02831587867 | F113: ='Ordenacion Funcional '!F102/'Ordenacion Funcional '!F83 -> 0.0280755695 | G113: =('Ordenacion Funcional '!F102-'Ordenacion Funcional '!B102)/'Ordenacion Funcional '!B102 -> -0.3327868852
A115: Ingresos financieros | B115: ='Ordenacion Funcional '!B104/'Ordenacion Funcional '!B83 -> 0.005123112856 | C115: ='Ordenacion Funcional '!C104/'Ordenacion Funcional '!C83 -> 0.004750617394 | D115: ='Ordenacion Funcional '!D104/'Ordenacion Funcional '!D83 -> 0.00286748449 | E115: ='Ordenacion Funcional '!E104/'Ordenacion Funcional '!E83 -> 0.003029618555 | F115: ='Ordenacion Funcional '!F104/'Ordenacion Funcional '!F83 -> 0.003335760013 | G115: =('Ordenacion Funcional '!F104-'Ordenacion Funcional '!B104)/'Ordenacion Funcional '!B104 -> -0.4313313734
A116: Gastos financieros | B116: ='Ordenacion Funcional '!B105/'Ordenacion Funcional '!B83 -> -0.01689917193 | C116: ='Ordenacion Funcional '!C105/'Ordenacion Funcional '!C83 -> -0.0174594492 | D116: ='Ordenacion Funcional '!D105/'Ordenacion Funcional '!D83 -> -0.01311130029 | E116: ='Ordenacion Funcional '!E105/'Ordenacion Funcional '!E83 -> -0.01220930302 | F116: ='Ordenacion Funcional '!F105/'Ordenacion Funcional '!F83 -> -0.01279364974 | G116: =('Ordenacion Funcional '!F105-'Ordenacion Funcional '!B105)/'Ordenacion Funcional '!B105 -> -0.3388082506
A117: Resto de ingresos y gastos financieros | B117: ='Ordenacion Funcional '!B106/'Ordenacion Funcional '!B83 -> -0.0006551817995 | C117: ='Ordenacion Funcional '!C106/'Ordenacion Funcional '!C83 -> -0.005963699329 | D117: ='Ordenacion Funcional '!D106/'Ordenacion Funcional '!D83 -> -0.003538728189 | E117: ='Ordenacion Funcional '!E106/'Ordenacion Funcional '!E83 -> -0.00255276735 | F117: ='Ordenacion Funcional '!F106/'Ordenacion Funcional '!F83 -> 0.0008474899884 | G117: =('Ordenacion Funcional '!F106-'Ordenacion Funcional '!B106)/'Ordenacion Funcional '!B106 -> -2.129720854
A118: Variación de valor razonable en instrumentos financieros | B118: ='Ordenacion Funcional '!B107/'Ordenacion Funcional '!B83 -> -0.0007261867236 | C118: ='Ordenacion Funcional '!C107/'Ordenacion Funcional '!C83 -> -0.0007653083374 | D118: ='Ordenacion Funcional '!D107/'Ordenacion Funcional '!D83 -> -0.0007043159255 | E118: ='Ordenacion Funcional '!E107/'Ordenacion Funcional '!E83 -> -0.0008975319664 | F118: ='Ordenacion Funcional '!F107/'Ordenacion Funcional '!F83 -> -0.0005087403564 | G118: =('Ordenacion Funcional '!F107-'Ordenacion Funcional '!B107)/'Ordenacion Funcional '!B107 -> -0.3881481481
A119: Diferencias de cambio | B119: ='Ordenacion Funcional '!B108/'Ordenacion Funcional '!B83 -> 1.613748275e-05 | C119: ='Ordenacion Funcional '!C108/'Ordenacion Funcional '!C83 -> -0.002575008279 | D119: ='Ordenacion Funcional '!D108/'Ordenacion Funcional '!D83 -> -0.002544111613 | E119: ='Ordenacion Funcional '!E108/'Ordenacion Funcional '!E83 -> -0.001077994452 | F119: ='Ordenacion Funcional '!F108/'Ordenacion Funcional '!F83 -> 0.001581652827 | G119: =('Ordenacion Funcional '!F108-'Ordenacion Funcional '!B108)/'Ordenacion Funcional '!B108 -> 84.6
A120: Deterioro y resultado por enajenaciones de instrumentos financieros | B120: ='Ordenacion Funcional '!B109/'Ordenacion Funcional '!B83 -> 5.486744134e-05 | C120: ='Ordenacion Funcional '!C109/'Ordenacion Funcional '!C83 -> -0.002623382712 | D120: ='Ordenacion Funcional '!D109/'Ordenacion Funcional '!D83 -> -0.000290300651 | E120: ='Ordenacion Funcional '!E109/'Ordenacion Funcional '!E83 -> -0.0005772409318 | F120: ='Ordenacion Funcional '!F109/'Ordenacion Funcional '!F83 -> -0.0002254224824 | G120: =('Ordenacion Funcional '!F109-'Ordenacion Funcional '!B109)/'Ordenacion Funcional '!B109 -> -4.588235294
A122: RESULTADO ANTES DE IMPUESTOS | B122: ='Ordenacion Funcional '!B111/'Ordenacion Funcional '!B83 -> 0.0243191865 | C122: ='Ordenacion Funcional '!C111/'Ordenacion Funcional '!C83 -> 0.01796427982 | D122: ='Ordenacion Funcional '!D111/'Ordenacion Funcional '!D83 -> 0.01156180525 | E122: ='Ordenacion Funcional '!E111/'Ordenacion Funcional '!E83 -> 0.01658342685 | F122: ='Ordenacion Funcional '!F111/'Ordenacion Funcional '!F83 -> 0.01946516976 | G122: =('Ordenacion Funcional '!F111-'Ordenacion Funcional '!B111)/'Ordenacion Funcional '!B111 -> -0.300951117
A124: Impuestos sobre beneficios | B124: ='Ordenacion Funcional '!B113/'Ordenacion Funcional '!B83 -> -0.003293122312 | C124: ='Ordenacion Funcional '!C113/'Ordenacion Funcional '!C83 -> -0.003491641766 | D124: ='Ordenacion Funcional '!D113/'Ordenacion Funcional '!D83 -> -0.003076941921 | E124: ='Ordenacion Funcional '!E113/'Ordenacion Funcional '!E83 -> -0.003048740408 | F124: ='Ordenacion Funcional '!F113/'Ordenacion Funcional '!F83 -> -0.003128814783 | G124: =('Ordenacion Funcional '!F113-'Ordenacion Funcional '!B113)/'Ordenacion Funcional '!B113 -> -0.1702058151
A126: RESULTADO DEL EJERCICIO | B126: ='Ordenacion Funcional '!B115/'Ordenacion Funcional '!B83 -> 0.02102606419 | C126: ='Ordenacion Funcional '!C115/'Ordenacion Funcional '!C83 -> 0.01447263806 | D126: ='Ordenacion Funcional '!D115/'Ordenacion Funcional '!D83 -> 0.008484863332 | E126: ='Ordenacion Funcional '!E115/'Ordenacion Funcional '!E83 -> 0.01353468644 | F126: ='Ordenacion Funcional '!F115/'Ordenacion Funcional '!F83 -> 0.01633635498 | G126: =('Ordenacion Funcional '!F115-'Ordenacion Funcional '!B115)/'Ordenacion Funcional '!B115 -> -0.3214285714
A128: R.G.O.C. | B128: ='Ordenacion Funcional '!B117/'Ordenacion Funcional '!B83 -> 0.04202523257 | C128: ='Ordenacion Funcional '!C117/'Ordenacion Funcional '!C83 -> 0.04056754373 | D128: ='Ordenacion Funcional '!D117/'Ordenacion Funcional '!D83 -> 0.03831233655 | E128: ='Ordenacion Funcional '!E117/'Ordenacion Funcional '!E83 -> 0.03929182218 | F128: ='Ordenacion Funcional '!F117/'Ordenacion Funcional '!F83 -> 0.03513018456 | G128: =('Ordenacion Funcional '!F117-'Ordenacion Funcional '!B117)/'Ordenacion Funcional '!B117 -> -0.269922945

Sheet ENDEUDAMIENTO
A1: ENDEUDAMIENTO | B1: 47. COMERCIO AL POR MENOR
A3: Numero de empresas incluidas que permanencen | B3: 910 | C3: 910 | D3: 910 | E3: 910 | F3: 910
B4: 2008 | C4: 2009 | D4: 2010 | E4: 2011 | F4: 2012
A6: ENDEUDAMIENTO TOTAL | B6: ='Ordenacion Funcional '!B51/'Ordenacion Funcional '!B37 -> 1.090017159 | C6: ='Ordenacion Funcional '!C51/'Ordenacion Funcional '!C37 -> 0.9954983923 | D6: ='Ordenacion Funcional '!D51/'Ordenacion Funcional '!D37 -> 0.9793615785 | E6: ='Ordenacion Funcional '!E51/'Ordenacion Funcional '!E37 -> 0.938405622 | F6: ='Ordenacion Funcional '!F51/'Ordenacion Funcional '!F37 -> 0.8555791262
A7: pasivo total / patrimonio neto
A9: ENDEUDAMIENTO LARGO PLAZO | B9: ='Ordenacion Funcional '!B52/'Ordenacion Funcional '!B37 -> 0.4697771192 | C9: ='Ordenacion Funcional '!C52/'Ordenacion Funcional '!C37 -> 0.4638411817 | D9: ='Ordenacion Funcional '!D52/'Ordenacion Funcional '!D37 -> 0.4505623107 | E9: ='Ordenacion Funcional '!E52/'Ordenacion Funcional '!E37 -> 0.4221141423 | F9: ='Ordenacion Funcional '!F52/'Ordenacion Funcional '!F37 -> 0.3819457144
A10: pasivo no corriente / patrimonio neto
A12: ENDEUDAMIENTO CORTO PLAZO | B12: ='Ordenacion Funcional '!B62/'Ordenacion Funcional '!B37 -> 0.6202400396 | C12: ='Ordenacion Funcional '!C62/'Ordenacion Funcional '!C37 -> 0.5316572106 | D12: ='Ordenacion Funcional '!D62/'Ordenacion Funcional '!D37 -> 0.5287992678 | E12: ='Ordenacion Funcional '!E62/'Ordenacion Funcional '!E37 -> 0.5162914798 | F12: ='Ordenacion Funcional '!F62/'Ordenacion Funcional '!F37 -> 0.4736334118
A13: pasivo corriente / patrimonio neto
A15: ENDEUDAMIENTO BANCARIO | B15: ='Ordenacion Funcional '!B75/'Ordenacion Funcional '!B37 -> 0.4855503661 | C15: ='Ordenacion Funcional '!C75/'Ordenacion Funcional '!C37 -> 0.485739056 | D15: ='Ordenacion Funcional '!D75/'Ordenacion Funcional '!D37 -> 0.4659795052 | E15: ='Ordenacion Funcional '!E75/'Ordenacion Funcional '!E37 -> 0.4229440003 | F15: ='Ordenacion Funcional '!F75/'Ordenacion Funcional '!F37 -> 0.3788774693
A16: deudas entidades de crédito / patrimonio neto
A18: ENDEUDAMIENTO BANCARIO LARGO PLAZO | B18: ='Ordenacion Funcional '!B54/'Ordenacion Funcional '!B37 -> 0.3925510635 | C18: ='Ordenacion Funcional '!C54/'Ordenacion Funcional '!C37 -> 0.40400338 | D18: ='Ordenacion Funcional '!D54/'Ordenacion Funcional '!D37 -> 0.3915191499 | E18: ='Ordenacion Funcional '!E54/'Ordenacion Funcional '!E37 -> 0.3600596657 | F18: ='Ordenacion Funcional '!F54/'Ordenacion Funcional '!F37 -> 0.3230983992
A19: deudas entidades de crédito l.p. / patrimonio neto
A21: ENDEUDAMIENTO BANCARIO CORTO PLAZO | B21: ='Ordenacion Funcional '!B67/'Ordenacion Funcional '!B37 -> 0.09299930264 | C21: ='Ordenacion Funcional '!C67/'Ordenacion Funcional '!C37 -> 0.08173567595 | D21: ='Ordenacion Funcional '!D67/'Ordenacion Funcional '!D37 -> 0.07446035533 | E21: ='Ordenacion Funcional '!E67/'Ordenacion Funcional '!E37 -> 0.06288433459 | F21: ='Ordenacion Funcional '!F67/'Ordenacion Funcional '!F37 -> 0.0557790701
A22: deudas entidades de crédito c.p. / patrimonio neto
A24: ENDEUDAMIENTO COMERCIAL CORTO PLAZO | B24: ='Ordenacion Funcional '!B63/'Ordenacion Funcional '!B37 -> 0.4052366446 | C24: ='Ordenacion Funcional '!C63/'Ordenacion Funcional '!C37 -> 0.3473546745 | D24: ='Ordenacion Funcional '!D63/'Ordenacion Funcional '!D37 -> 0.3429077262 | E24: ='Ordenacion Funcional '!E63/'Ordenacion Funcional '!E37 -> 0.3408027564 | F24: ='Ordenacion Funcional '!F63/'Ordenacion Funcional '!F37 -> 0.3084602286
A25: pasivos comerciales / patrimonio neto

Sheet EQUILIBRIO FINANCIERO
A1: EQUILIBRIO FNANCIERO | B1: 47. COMERCIO AL POR MENOR
A3: Numero de empresas incluidas que permanencen | B3: 910 | C3: 910 | D3: 910 | E3: 910 | F3: 910
B4: 2008 | C4: 2009 | D4: 2010 | E4: 2011 | F4: 2012 | H4: (1) Necesidades de Financiación = Activo Comercial - Pasivo Comercial
A5: LARGO PLAZO | H5: (2) Recursos Generados por Operaciones Corrientes (RGOC)
A6: GARANTÍA | H6: (3) Periodo Medio de Almacenamiento PMA
A7: activo total / pasivo total | B7: ='Ordenacion Funcional '!B32/'Ordenacion Funcional '!B51 -> 1.917416751 | C7: ='Ordenacion Funcional '!C32/'Ordenacion Funcional '!C51 -> 2.004521964 | D7: ='Ordenacion Funcional '!D32/'Ordenacion Funcional '!D51 -> 2.021073342 | E7: ='Ordenacion Funcional '!E32/'Ordenacion Funcional '!E51 -> 2.065637264 | F7: ='Ordenacion Funcional '!F32/'Ordenacion Funcional '!F51 -> 2.168798968
A8: FINANCIACIÓN ACTIVO NO CORRIENTE
A9: activo no corriente / pasivo no corriente | B9: =('Ordenacion Funcional '!B10+'Ordenacion Funcional '!B23)/('Ordenacion Funcional '!B52) -> 2.29518187 | C9: =('Ordenacion Funcional '!C10+'Ordenacion Funcional '!C23)/('Ordenacion Funcional '!C52) -> 2.27071967 | D9: =('Ordenacion Funcional '!D10+'Ordenacion Funcional '!D23)/('Ordenacion Funcional '!D52) -> 2.32058436 | E9: =('Ordenacion Funcional '!E10+'Ordenacion Funcional '!E23)/('Ordenacion Funcional '!E52) -> 2.405439976 | F9: =('Ordenacion Funcional '!F10+'Ordenacion Funcional '!F23)/('Ordenacion Funcional '!F52) -> 2.548481141
A12: CORTO PLAZO | H12: (4) Periodo Medio de Cobro a Clientes PMC
A13: RATIO CORRIENTE
A14: activo corriente / pasivo corriente | B14: =('Ordenacion Funcional '!B14+'Ordenacion Funcional '!B27)/'Ordenacion Funcional '!B62 -> 1.631292995 | C14: =('Ordenacion Funcional '!C14+'Ordenacion Funcional '!C27)/'Ordenacion Funcional '!C62 -> 1.772279353 | D14: =('Ordenacion Funcional '!D14+'Ordenacion Funcional '!D27)/'Ordenacion Funcional '!D62 -> 1.765875605 | E14: =('Ordenacion Funcional '!E14+'Ordenacion Funcional '!E27)/'Ordenacion Funcional '!E62 -> 1.787818366 | F14: =('Ordenacion Funcional '!F14+'Ordenacion Funcional '!F27)/'Ordenacion Funcional '!F62 -> 1.862617067
A16: RATIO DE COBERTUA DE LAS NECESIDADES DE FINANCIACIÓN
A17: necesidades de financiación / fondo de maniobra (1) | B17: =('Ordenacion Funcional '!B15-'Ordenacion Funcional '!B63)/('Ordenacion Funcional '!B14+'Ordenacion Funcional '!B27-'Ordenacion Funcional '!B62) -> 0.8146101975 | C17: =('Ordenacion Funcional '!C15-'Ordenacion Funcional '!C63)/('Ordenacion Funcional '!C14+'Ordenacion Funcional '!C27-'Ordenacion Funcional '!C62) -> 0.7719784038 | D17: =('Ordenacion Funcional '!D15-'Ordenacion Funcional '!D63)/('Ordenacion Funcional '!D14+'Ordenacion Funcional '!D27-'Ordenacion Funcional '!D62) -> 0.7654178552 | E17: =('Ordenacion Funcional '!E15-'Ordenacion Funcional '!E63)/('Ordenacion Funcional '!E14+'Ordenacion Funcional '!E27-'Ordenacion Funcional '!E62) -> 0.7234148055 | F17: =('Ordenacion Funcional '!F15-'Ordenacion Funcional '!F63)/('Ordenacion Funcional '!F14+'Ordenacion Funcional '!F27-'Ordenacion Funcional '!F62) -> 0.697020938
A19: SOLVENCIA C/P | H19: (5) Periodo Medio de Pago a Proveedores PMP
B20: ='Ordenacion Funcional '!B117/'Ordenacion Funcional '!B66 -> 0.4181393905 | C20: ='Ordenacion Funcional '!C117/'Ordenacion Funcional '!C66 -> 0.3902863962 | D20: ='Ordenacion Funcional '!D117/'Ordenacion Funcional '!D66 -> 0.361440771 | E20: ='Ordenacion Funcional '!E117/'Ordenacion Funcional '!E66 -> 0.3954699642 | F20: ='Ordenacion Funcional '!F117/'Ordenacion Funcional '!F66 -> 0.3514269519
A21: RGOC / créditos puros c/p (2)
A22: SOLVENCIA C/P | B22: ='Ordenacion Funcional '!B117/'Ordenacion Funcional '!B67 -> 0.9635430798 | C22: ='Ordenacion Funcional '!C117/'Ordenacion Funcional '!C67 -> 0.8782491944 | D22: ='Ordenacion Funcional '!D117/'Ordenacion Funcional '!D67 -> 0.9003454231 | E22: ='Ordenacion Funcional '!E117/'Ordenacion Funcional '!E67 -> 1.098389683 | F22: ='Ordenacion Funcional '!F117/'Ordenacion Funcional '!F67 -> 1.038905686
A23: RGOC / deudas entidades de crédito c/p
A25: Periodo Medio de Maduración | B25: 47. COMERCIO AL POR MENOR | H25: (6) Periodo Medio Financiero PMF = PM Económico - PM de pago a Proveedores
A27: Numero de empresas incluidas que permanencen | B27: 910 | C27: 910 | D27: 910 | E27: 910 | F27: 910
B28: 2008 | C28: 2009 | D28: 2010 | E28: 2011 | F28: 2012
A29: P.M. ALMACENAMIENTO (3) | B29: ='Ordenacion Funcional '!B16/(-'Ordenacion Funcional '!B84/365) -> 115.4584181 | C29: ='Ordenacion Funcional '!C16/(-'Ordenacion Funcional '!C84/365) -> 132.8770544 | D29: ='Ordenacion Funcional '!D16/(-'Ordenacion Funcional '!D84/365) -> 132.914013 | E29: ='Ordenacion Funcional '!E16/(-'Ordenacion Funcional '!E84/365) -> 129.8192346 | F29: ='Ordenacion Funcional '!F16/(-'Ordenacion Funcional '!F84/365) -> 131.0050336
A30: P.M. COBRO CLIENTES (4) | B30: ='Ordenacion Funcional '!B17/('Ordenacion Funcional '!B83/365) -> 34.36528053 | C30: ='Ordenacion Funcional '!C17/('Ordenacion Funcional '!C83/365) -> 37.6856679 | D30: ='Ordenacion Funcional '!D17/('Ordenacion Funcional '!D83/365) -> 36.69873039 | E30: ='Ordenacion Funcional '!E17/('Ordenacion Funcional '!E83/365) -> 34.01404142 | F30: ='Ordenacion Funcional '!F17/('Ordenacion Funcional '!F83/365) -> 31.54530807
A32: P.M.M. ECONÓMICO | B32: =SUM(B29:B30) -> 149.8236986 | C32: =SUM(C29:C30) -> 170.5627223 | D32: =SUM(D29:D30) -> 169.6127434 | E32: =SUM(E29:E30) -> 163.833276 | F32: =SUM(F29:F30) -> 162.5503417
A34: P.M. PAGO PROVEEDORES (5) | B34: =('Ordenacion Funcional '!B64)/((-'Ordenacion Funcional '!B85)/365) -> 70.74739344 | C34: =('Ordenacion Funcional '!C64)/((-'Ordenacion Funcional '!C85)/365) -> 75.43515949 | D34: =('Ordenacion Funcional '!D64)/((-'Ordenacion Funcional '!D85)/365) -> 75.73072292 | E34: =('Ordenacion Funcional '!E64)/((-'Ordenacion Funcional '!E85)/365) -> 72.95126886 | F34: =('Ordenacion Funcional '!F64)/((-'Ordenacion Funcional '!F85)/365) -> 68.72834846
A36: P.M.M. FINANCIERO (6) | B36: =B32-B34 -> 79.07630519 | C36: =C32-C34 -> 95.12756279 | D36: =D32-D34 -> 93.88202044 | E36: =E32-E34 -> 90.88200712 | F36: =F32-F34 -> 93.82199324
A38: NECESIDADES DE FINANCIACIÓN (periodo medio de maduración en días)
A39: (p.m.m. financiero / p.m.m. económico) * 100 | B39: =(B36/B32)*100 -> 52.77957086 | C39: =(C36/C32)*100 -> 55.77277468 | D39: =(D36/D32)*100 -> 55.35080595 | E39: =(E36/E32)*100 -> 55.47225164 | F39: =(F36/F32)*100 -> 57.71873025
A41: NECESIDADES DE FINANCIACIÓN (periodo medio de maduración en euros)
A42: (existencias + clientes por ventas y prestación de servicios) / proveedores | B42: =('Ordenacion Funcional '!B16+'Ordenacion Funcional '!B17)/'Ordenacion Funcional '!B64 -> 2.31955798 | C42: =('Ordenacion Funcional '!C16+'Ordenacion Funcional '!C17)/'Ordenacion Funcional '!C64 -> 2.487260062 | D42: =('Ordenacion Funcional '!D16+'Ordenacion Funcional '!D17)/'Ordenacion Funcional '!D64 -> 2.448060255 | E42: =('Ordenacion Funcional '!E16+'Ordenacion Funcional '!E17)/'Ordenacion Funcional '!E64 -> 2.44073241 | F42: =('Ordenacion Funcional '!F16+'Ordenacion Funcional '!F17)/'Ordenacion Funcional '!F64 -> 2.561555962

Sheet RENTABILIDAD
A1: Rentabilidad | B1: 47. COMERCIO AL POR MENOR
A3: Numero de empresas incluidas que permanencen | B3: 910 | C3: 910 | D3: 910 | E3: 910 | F3: 910
B4: 2008 | C4: 2009 | D4: 2010 | E4: 2011 | F4: 2012
A5: RENTABILIDAD ECONÓMICA | B5: =('BALANCE-PYG '!B99-'BALANCE-PYG '!B89)/'BALANCE-PYG '!B27 -> 0.03869181876 | C5: =('BALANCE-PYG '!C99-'BALANCE-PYG '!C89)/'BALANCE-PYG '!C27 -> 0.02831565621 | D5: =('BALANCE-PYG '!D99-'BALANCE-PYG '!D89)/'BALANCE-PYG '!D27 -> 0.01909180983 | E5: =('BALANCE-PYG '!E99-'BALANCE-PYG '!E89)/'BALANCE-PYG '!E27 -> 0.02334683066 | F5: =('BALANCE-PYG '!F99-'BALANCE-PYG '!F89)/'BALANCE-PYG '!F27 -> 0.02589572285
A6: (BDI + gastos financieros) / (total activo - accionistas exigidos) (%)
A7: MARGEN ECONÓMICO | B7: =('BALANCE-PYG '!B99-'BALANCE-PYG '!B89)/'BALANCE-PYG '!B76 -> 0.03792523612 | C7: =('BALANCE-PYG '!C99-'BALANCE-PYG '!C89)/'BALANCE-PYG '!C76 -> 0.03193208726 | D7: =('BALANCE-PYG '!D99-'BALANCE-PYG '!D89)/'BALANCE-PYG '!D76 -> 0.02159616362 | E7: =('BALANCE-PYG '!E99-'BALANCE-PYG '!E89)/'BALANCE-PYG '!E76 -> 0.02574398946 | F7: =('BALANCE-PYG '!F99-'BALANCE-PYG '!F89)/'BALANCE-PYG '!F76 -> 0.02913000472
A8: (BDI + gastos financieros) / importe neto cifra de negocios (%)
A9: ROTACIÓN ACTIVO TOTAL | B9: ='BALANCE-PYG '!B76/'BALANCE-PYG '!B27 -> 1.020212996 | C9: ='BALANCE-PYG '!C76/'BALANCE-PYG '!C27 -> 0.8867461743 | D9: ='BALANCE-PYG '!D76/'BALANCE-PYG '!D27 -> 0.8840370986 | E9: ='BALANCE-PYG '!E76/'BALANCE-PYG '!E27 -> 0.9068847193 | F9: ='BALANCE-PYG '!F76/'BALANCE-PYG '!F27 -> 0.8889707742
A10: importe neto cifra de negocios / (total activo - accionistas exigidos)
A12: RENTABILIDAD FINANCIERA | B12: ='BALANCE-PYG '!B99/'BALANCE-PYG '!B31 -> 0.0448330917 | C12: ='BALANCE-PYG '!C99/'BALANCE-PYG '!C31 -> 0.02560934122 | D12: ='BALANCE-PYG '!D99/'BALANCE-PYG '!D31 -> 0.01484706049 | E12: ='BALANCE-PYG '!E99/'BALANCE-PYG '!E31 -> 0.02379276658 | F12: ='BALANCE-PYG '!F99/'BALANCE-PYG '!F31 -> 0.02694772604
A13: BDI / (patrimonio neto - accionistas exigidos) (%)
A14: COSTE MEDIO CONTABLE DE LA DEUDA | B14: =ABS('BALANCE-PYG '!B89/('BALANCE-PYG '!B45+'BALANCE-PYG '!B55)) -> 0.0330577121 | C14: =ABS('BALANCE-PYG '!C89/('BALANCE-PYG '!C45+'BALANCE-PYG '!C55)) -> 0.03103420906 | D14: =ABS('BALANCE-PYG '!D89/('BALANCE-PYG '!D45+'BALANCE-PYG '!D55)) -> 0.02342601022 | E14: =ABS('BALANCE-PYG '!E89/('BALANCE-PYG '!E45+'BALANCE-PYG '!E55)) -> 0.02287162472 | F14: =ABS('BALANCE-PYG '!F89/('BALANCE-PYG '!F45+'BALANCE-PYG '!F55)) -> 0.0246661426
A15: gastos financieros / pasivo total (%)
A16: RATIO DE ENDEUDAMIENTO | B16: =('BALANCE-PYG '!B45+'BALANCE-PYG '!B55)/'BALANCE-PYG '!B31 -> 1.090017159 | C16: =('BALANCE-PYG '!C45+'BALANCE-PYG '!C55)/'BALANCE-PYG '!C31 -> 0.9954983923 | D16: =('BALANCE-PYG '!D45+'BALANCE-PYG '!D55)/'BALANCE-PYG '!D31 -> 0.9793615785 | E16: =('BALANCE-PYG '!E45+'BALANCE-PYG '!E55)/'BALANCE-PYG '!E31 -> 0.938405622 | F16: =('BALANCE-PYG '!F45+'BALANCE-PYG '!F55)/'BALANCE-PYG '!F31 -> 0.8555791262
A17: pasivo total / (patrimonio neto - accionistas exigidos)
A18: APALANCAMIENTO FINANCIERO | B18: =(B5-B14)*B16 -> 0.00614127294 | C18: =(C5-C14)*C16 -> -0.002706314993 | D18: =(D5-D14)*D16 -> -0.004244749341 | E18: =(E5-E14)*E16 -> 0.0004459359211 | F18: =(F5-F14)*F16 -> 0.001052003197
A19: (RE - coste medio contable deuda) * endeudamiento (%)

Sheet Notas
A1: Notas
A3: NT1: Análisis Patrimonial y de Resultados de la Empresa. | M3: NT2: Análisis Financiero o de Solvencia
A4: El análisis patrimonial de la empresa comprende el estudio del patrimonio y de los resultados (pérdidas y ganancias). | M4: El análisis del equilibrio financiero presenta una doble perspectiva:
N5: Estático: entendido como el grado de correlación entre inversión y fuentes de financiación que demuestre la estructura patrimonial de una empresa,
A6: Esta primera parte del análisis tiene como objetivo el estudio estructural y coyuntural de los componentes del patrimonio (Balance: inversión y financiación) y resultados empresariales (ingresos y gastos) y de sus variaciones, tendencias y equilibrios
N7: Dinámico: entendido como la capacidad que demuestre una empresa para generar recursos financieros suficientes y con puntualidad para el cumplimiento continuado de sus compromisos de pagos
A9: El balance representa la fotografía del patrimonio de la empresa en un momento determinado. Dicha fotografía recoge, por un lado, las fuentes de financiación u orígenes de recursos (patrimonio neto y pasivo o estructura financiera) y, por otro, las aplicaciones de dichos fondos en bienes, derechos y otros recursos controlados económicamente por la empresa (activo o estructura económica)
M10: El equilibrio financiero, tanto en términos de correlación inversión financiación así como de capacidad de generación de recursos suficientes en cantidad y tiempo, se han definido unos parámetros generales:
A13: Respecto al analisis de la cuenta de pérdidas y ganancias, señalar que interesa prestar especial atención al estudio de la composición y evolución de los resultados con una doble finalidad: Conocer si el objetivo beneficio se ha cumplido y cómo, y analizar los distintos gastos e ingresos e identificar en qué medida cada uno de ellos ha contribuido al beneficio, a disminuirlo o aumentarlo. | N13: a) El activo no corriente (inversiones a largo plazo) deberá financiarse con recursos financieros a largo plazo (capital social, obligaciones, autofinanciación y créditos a largo plazo).
N16: b) El activo corriente (inversiones a corto plazo) deberá financiarse con créditos a corto plazo y algo de largo plazo
A17: Análisis de la inversión: aspectos a evaluar e índices de referencia
A18: · Evolución de la inversión total a lo largo del periodo de análisis (crecimiento/decrecimiento e intensidad). | M18: NT3: Análisis Económico o de la Rentabilidad
A19: ·Cómo dicha evolución ha afectado a las inversiones propias y ajenas a la explotación. | N19: La rentabilidad es la medida del rendimiento que en un determinado periodo de tiempo (el ejercicio) producen los capitales utilizados en el mismo, o sea, la cczxczcomparación entre la renta generada y los capitales invertidos para obtenerla. Su análisis estará encaminado a evaluar el el grado de adecuación entre la rentabilidad alcanzada y su posición en el mercado y los medios empleados
A20: ·Si existe una estructura de inversión característica (propia/ajena) y como la evolución apuntada previamente la ha moldeado.
A22: ·Política de renovación de los inmovilizados de explotación, tanto intangibles como materiales (tasas de variación)
A24: ·Análisis de la estructura y evolución de las inversiones corrientes propias del ciclo de explotación (activos comerciales) | N24: Su expresión matemática responde al siguiente cociente, cuyo significado es la cantidad de renta o beneficio obtenido por cada unidad monetaria invertida:
A26: Este análisis puede venir acompañado de ciertos índices de eficiencia que nos ayuden a objetivar el resultado de las comparaciones.
A28: Análisis de la financiación: aspectos a evaluar e índices de referencia | N28: Por tanto la rentabilidad es el indicador financiero frecuente, frente a otras variables de resultados, para de medir la gestión empresarial
A29: Evaluación del nivel de endeudamiento total.
A30: Mas allá de la premisa generalmente aceptada de que existe una relación positiva entre nivel de endeudamiento y riesgo financiero (una empresa no endeudada difícilmente entrará en quiebra), el análisis en este punto deberá ser de carácter descriptivo, ya que su correcta evaluación requeriría disponer de información que incluyera, entre otras, valoraciones sobre solvencia y rentabilidad
A34: Análisis de la calidad del endeudamiento:
A35: El análisis de la calidad del endeudamiento es tan importante como el de su intensidad, debiéndose plantear una valoración distinta entre la participación de los créditos de provisión (permanentes y gratuitos) y los créditos puros (no permanente y con coste); y entre los créditos puros en su versión de largo y corto plazo, implicando éstos últimos el mayor riesgo financiero
